Workbook

Sheet 地市透视表
A1: 地市 | B1: 资产条数 | C1: 资产原值（元） | D1: 资产净值（元） | E1: 净值/原值 | F1: 评估价（元）
A2: 衢州 | B2: 138 | C2: 491356.77 | D2: 41470.69 | E2: =D2/C2 -> 8.44% | F2: 40079.25
A3: 湖州 | B3: 123 | C3: 668328.20 | D3: 98430.13 | E3: =D3/C3 -> 14.73% | F3: 67409.17
A4: 合计 | B4: =SUM(B2:B3) -> 261 | C4: =SUM(C2:C3) -> 1159684.97 | D4: =SUM(D2:D3) -> 139900.82 | E4: =D4/C4 -> 12.06% | F4: =SUM(F2:F3) -> 107488.42

Sheet 汇总
A1: 地市 | B1: 拍卖批次 | C1: 资产类别名称（大类相同完整度不同的分行填报） | D1: 对应估值清单的分类描述 | E1: 计量单位 | F1: 资产数量 | G1: 总重量（kg） | H1: 完整度/出铜（铝）率（%） | I1: 最低转让单价（含税） | J1: 最低转让总价（含税） | K1: 备注 （主要配件缺失的需要注明）
A2: 衢州 | B2: 第三十批 | C2: 3P空调 | D2: 3匹室内外成套 | E2: 套 | F2: 23 | G2: / | H2: / | I2: 936 | J2: =I2*F2 -> 21528.00 | K2: 铜管
A3: 衢州 | B3: 第三十批 | C3: 抱杆 | D3: 其他各类铁质为主的报废物资 | E3: 个 | F3: 1 | G3: 16 | H3: / | I3: 2270元/吨 | J3: =2270/1000*G3 -> 36.32
A4: 衢州 | B4: 第三十批 | C4: 壁挂空调 | D4: 2P及2P以下成套空调 | E4: 个 | F4: 7 | G4: / | H4: / | I4: 520 | J4: 3640.00 | K4: 铜管
A5: 衢州 | B5: 第三十批 | C5: 标签标牌 | D5: PVC塑料 | E5: 个 | F5: 1 | G5: 0.2 | H5: / | I5: 1840元/吨 | J5: =1840/1000*G5 -> 0.37
A6: 衢州 | B6: 第三十批 | C6: 低压避雷设施 | D6: 其他各类铁质为主的报废物资 | E6: 个 | F6: 2 | G6: 0.6 | H6: / | I6: 2270元/吨 | J6: 1.36
A7: 衢州 | B7: 第三十批 | C7: 电表 | D7: 配电箱类 | F7: 1 | G7: 1.5 | H7: / | I7: 107 | J7: 107.00
A8: 衢州 | B8: 第三十批 | C8: 电控锁 | D8: 其他各类铁质为主的报废物资 | E8: 个 | F8: 3 | G8: 6 | H8: / | I8: 2270元/吨 | J8: 13.62
A9: 衢州 | B9: 第三十批 | C9: 电力电缆 | D9: 铜缆类 | E9: 米 | F9: 1 | G9: 1.5 | H9: 50% | I9: 70510元/吨×出铜率 | J9: =70510/1000*H9*G9 -> 52.88
A10: 衢州 | B10: 第三十批 | C10: 电力电缆 | D10: 铝缆类 | E10: 米 | F10: 19 | G10: 4.5 | H10: 50% | I10: 17090元/吨×出铝率 | J10: =17090/1000*H10*G10 -> 38.45
A11: 衢州 | B11: 第三十批 | C11: 动环监控 | D11: 动环监控 | E11: 个 | F11: 16 | G11: 32 | H11: / | I11: 16 | J11: =I11*F11 -> 256.00
A12: 衢州 | B12: 第三十批 | C12: 供电计量设备 | D12: 配电箱类 | E12: 个 | F12: 1 | G12: 0.5 | H12: / | I12: 107 | J12: 107.00
A13: 衢州 | B13: 第三十批 | C13: 过压保护器 | D13: 其他各类铁质为主的报废物资 | E13: 个 | F13: 2 | G13: 1 | H13: / | I13: 2270元/吨 | J13: =2270/1000*G13 -> 2.27
A14: 衢州 | B14: 第三十批 | C14: 霍尔传感器 | D14: 其他各类铁质为主的报废物资 | E14: 个 | F14: 2 | G14: 0.6 | H14: / | I14: 2270元/吨 | J14: 1.36
A15: 衢州 | B15: 第三十批 | C15: 机柜空调 | D15: 机柜空调 | E15: 个 | F15: 2 | G15: 38 | H15: / | I15: 10020元/吨 | J15: =10020/1000*G15 -> 380.76
A16: 衢州 | B16: 第三十批 | C16: 交流配电箱 | D16: 配电箱类 | E16: 个 | F16: 5 | G16: 30 | H16: / | I16: 107 | J16: 535.00
A17: 衢州 | B17: 第三十批 | C17: 门禁 | D17: 其他各类铁质为主的报废物资 | E17: 个 | F17: 1 | G17: 0.5 | H17: / | I17: 2270元/吨 | J17: 1.14
A18: 衢州 | B18: 第三十批 | C18: 门禁电源转换模块 | D18: 其他各类铁质为主的报废物资 | E18: 个 | F18: 1 | G18: 0.5 | H18: / | I18: 2270元/吨 | J18: 1.14
A19: 衢州 | B19: 第三十批 | C19: 灭火器 | D19: 灭火器 | E19: 个 | F19: 100 | G19: 700 | H19: / | I19: 3.00 | J19: =I19*F19 -> 300.00
A20: 衢州 | B20: 第三十批 | C20: 嵌入式开关电源 | D20: 其他各类铁质为主的报废物资 | E20: 个 | F20: 10 | G20: 120 | H20: / | I20: 2270元/吨 | J20: =2270/1000*G20 -> 272.40 | K20: 模块
A21: 衢州 | B21: 第三十批 | C21: 室内RRU安装架 | D21: 其他各类铁质为主的报废物资 | E21: 个 | F21: 2 | G21: 70 | H21: / | I21: 2270元/吨 | J21: 158.90
A22: 衢州 | B22: 第三十批 | C22: 一体化机柜 | D22: 一体化机柜（风扇型） | E22: 个 | F22: 5 | G22: / | H22: / | I22: 170 | J22: =I22*F22 -> 850.00
A23: 衢州 | B23: 第三十批 | C23: 整流模块 | D23: 其他各类铁质为主的报废物资 | E23: 个 | F23: 32 | G23: 64 | H23: / | I23: 2270元/吨 | J23: 145.28
A24: 衢州 | B24: 第三十批 | C24: 直流计量终端6分路 | D24: 其他各类铁质为主的报废物资 | E24: 个 | F24: 1 | G24: 0.5 | H24: / | I24: 2270元/吨 | J24: 1.14
A25: 衢州 | B25: 第三十批 | C25: 智能空调控制器 | D25: 其他各类铁质为主的报废物资 | E25: 个 | F25: 2 | G25: 1 | H25: / | I25: 2270元/吨 | J25: 2.27
A26: 衢州 | B26: 第三十批 | C26: 组合式开关电源 | D26: 组合开关电源柜 | E26: 个 | F26: 17 | G26: / | H26: 40% | I26: 997×完整度+198 | J26: =(997*H26+198)*F26 -> 10145.60 | K26: 模块
A27: 衢州 | B27: 第三十批 | C27: 投影仪 | D27: 投影仪 | E27: 台 | F27: 3 | I27: 34 | J27: =I27*F27 -> 102
A28: 衢州 | B28: 第三十批 | C28: 办公设备电脑 | D28: 台式电脑 | E28: 台 | F28: 14 | I28: 81 | J28: 1134
A29: 衢州 | B29: 第三十批 | C29: 办公设备电脑 | D29: 笔记本电脑 | E29: 台 | F29: 1 | I29: 80 | J29: 80
A30: 衢州 | B30: 第三十批 | C30: 打印机设备 | D30: 打印机 | E30: 台 | F30: 4 | I30: 26 | J30: 104
A31: 衢州 | B31: 第三十批 | C31: 多功能一体化机 | D31: 多功能一体化机 | E31: 台 | F31: 1 | I31: 81 | J31: 81
A32: 湖州 | B32: 第三十批 | C32: 3匹室内外成套 | D32: 3匹室内外成套 | E32: 个 | F32: 18 | I32: 936 | J32: =F32*I32 -> 16848 | K32: 其中9个无冷凝管
A33: 湖州 | B33: 第三十批 | C33: 2P及2P以下成套空调 | D33: 2P及2P以下成套空调 | E33: 个 | F33: 2 | I33: 520 | J33: 1040 | K33: 无冷凝管
A34: 湖州 | B34: 第三十批 | C34: 交流配电箱 | D34: 配电箱类 | F34: 5 | I34: 107 | J34: 535
A35: 湖州 | B35: 第三十批 | C35: 铝芯电缆 | D35: 铝缆类 | E35: 米 | F35: 380 | G35: 285 | H35: 40% | I35: 17090元/吨×出铝率 | J35: =17090/1000*H35*G35 -> 1948.26 | K35: 4*35
A36: 湖州 | B36: 第三十批 | C36: 动环监控 | D36: 动环监控 | E36: 个 | F36: 14 | I36: 16 | J36: =F36*I36 -> 224
A37: 湖州 | B37: 第三十批 | C37: 机柜空调 | D37: 机柜空调 | E37: 个 | F37: 2 | G37: 60 | I37: 10020元/吨 | J37: =10020/1000*G37 -> 601.2
A38: 湖州 | B38: 第三十批 | C38: 嵌入式开关电源 | D38: 其他各类铁质为主的报废物资 | E38: 个 | F38: 2 | G38: 36 | I38: 2270元/吨 | J38: =2270/1000*G38 -> 81.72
A39: 湖州 | B39: 第三十批 | C39: 组合开关电源柜 | D39: 组合开关电源柜 | E39: 个 | F39: 9 | H39: 45% | I39: 997×完整度+198 | J39: =(997*H39+198)*F39 -> 5819.85
A40: 湖州 | B40: 第三十批 | C40: 3匹室内外成套 | D40: 3匹室内外成套 | E40: 个 | F40: 26 | I40: 936 | J40: 24336 | K40: 其中11个无冷凝管，15个有冷凝管
A41: 湖州 | B41: 第三十批 | C41: 交流配电箱 | D41: 配电箱类 | F41: 1 | I41: 107 | J41: 107
A42: 湖州 | B42: 第三十批 | C42: 铝芯电缆 | D42: 铝缆类 | E42: 米 | F42: 1883.5 | G42: 1400 | H42: 40% | I42: 17090元/吨×出铝率 | J42: =17090/1000*H42*G42 -> 9570.40 | K42: 4*35
A43: 湖州 | B43: 第三十批 | C43: 动环监控 | D43: 动环监控 | E43: 个 | F43: 5 | I43: 16 | J43: =I43*F43 -> 80.00
A44: 湖州 | B44: 第三十批 | C44: 机柜空调 | D44: 机柜空调 | E44: 个 | F44: 2 | G44: 60 | I44: 10020元/吨 | J44: =10020/1000*G44 -> 601.20
A45: 湖州 | B45: 第三十批 | C45: 嵌入式开关电源 | D45: 其他各类铁质为主的报废物资 | E45: 个 | F45: 6 | G45: 96 | I45: 2270元/吨 | J45: =2270/1000*G45 -> 217.92
A46: 湖州 | B46: 第三十批 | C46: 壁挂式开关电源 | D46: 其他各类铁质为主的报废物资 | E46: 个 | F46: 1 | G46: 25 | I46: 2270元/吨 | J46: 56.75
A47: 湖州 | B47: 第三十批 | C47: 防盗门 | D47: 其他各类铁质为主的报废物资 | E47: 个 | F47: 12 | G47: 720 | I47: 2270元/吨 | J47: 1634.40
A48: 湖州 | B48: 第三十批 | C48: 防雷箱 | D48: 其他各类铁质为主的报废物资 | E48: 个 | F48: 1 | G48: 5 | I48: 2270元/吨 | J48: 11.35
A49: 湖州 | B49: 第三十批 | C49: 配套机架/机柜 | D49: 其他各类铁质为主的报废物资 | E49: 个 | F49: 1 | G49: 50 | I49: 2270元/吨 | J49: 113.50
A50: 湖州 | B50: 第三十批 | C50: 铜铁转换条 | D50: 其他各类铁质为主的报废物资 | E50: 个 | F50: 1 | G50: 0.8 | I50: 2270元/吨 | J50: 1.82
A51: 湖州 | B51: 第三十批 | C51: 组合开关电源柜 | D51: 组合开关电源柜 | E51: 个 | F51: 6 | H51: 40% | I51: 997×完整度+198 | J51: =(997*H51+198)*F51 -> 3580.80

Sheet 衢州
A1: 序号 | B1: 报废批复文号 | C1: 资产编号 | D1: 资产名称 | E1: 资产类别名称 | F1: 资产原值 （元，不含税） | G1: 资产净值 （元，不含税） | H1: 累计折旧 | I1: 资产数量 | J1: 计量单位 （个/吨/米等） | K1: 单节电池电压（2V/12V） | L1: 规格型号 | M1: 生产厂家 | N1: 站点名称 | O1: 站点编码 | P1: 实物备注
A2: 1 | B2: 衢州铁塔〔2024〕48号 | C2: 330800346101 | D2: 地面塔扩容资产 | E2: 抱杆 | F2: 3811.42 | G2: 3165 | H2: 646.42 | I2: 1 | J2: 根 | L2: 天线抱杆 | N2: 衢江粮食市场 | O2: 330803500000000013 | P2: 抱杆
A3: 2 | B3: 衢州铁塔〔2024〕48号 | C3: 330800355414 | D3: 一体化机柜 | E3: 一体化机柜 | F3: 1653.07 | G3: 985.12 | H3: 667.95 | I3: 1 | J3: 个 | L3: 一体化机柜一体化综合柜660*660*1000自然通风 | N3: 衢江上东府 | O3: 330803500010001643 | P3: 一体化机柜
A4: 3 | B4: 衢州铁塔〔2024〕64号 | C4: 330800110275 | D4: 开关电源 | E4: 开关电源 | F4: 932.4 | G4: 27.97 | H4: 904.43 | I4: 1 | J4: 个 | L4: 48-400A(50A模块)-100 | N4: 龙游白畈 | O4: 330825908000000761 | P4: 组合式开关电源
A5: 4 | B5: 衢州铁塔〔2024〕64号 | C5: 330800126767 | D5: 专用空调 | E5: 空调 | F5: 1442 | G5: 43.26 | H5: 1398.74 | I5: 1 | J5: 个 | L5: KF-50GW-JH1(R2) | N5: 龙游材料市场 | O5: 330825908000000483 | P5: 2P
A6: 5 | B6: 衢州铁塔〔2024〕64号 | C6: 330800111102 | D6: 整流设备-组合开关电源 | E6: 开关电源 | F6: 299.4 | G6: 8.98 | H6: 290.42 | I6: 1 | J6: 个 | L6: 48V-600A(50A模块)-150A | N6: 龙游东华鹁鸪头 | O6: 330825908000000376 | P6: 组合式开关电源
A7: 6 | B7: 衢州铁塔〔2024〕64号 | C7: 330800115916 | D7: 交流配电箱 | E7: 交流配电箱 | F7: 2757.71 | G7: 82.73 | H7: 2674.98 | I7: 1 | J7: 个 | L7: ZBX1R-20（大） | N7: 龙游东华鹁鸪头 | O7: 330825908000000376 | P7: 交流配电箱
A8: 7 | B8: 衢州铁塔〔2024〕64号 | C8: 330800115917 | D8: 过压保护器 | E8: 过压保护器 | F8: 1718.49 | G8: 51.55 | H8: 1666.94 | I8: 1 | J8: 面 | L8: YD60K385-3+1J | N8: 龙游东华鹁鸪头 | O8: 330825908000000376 | P8: 过压保护器
A9: 8 | B9: 衢州铁塔〔2024〕64号 | C9: 330800115919 | D9: 智能通风系统 | E9: 空调 | F9: 1678.45 | G9: 50.35 | H9: 1628.1 | I9: 1 | J9: 套 | L9: SDVCOM | N9: 龙游东华鹁鸪头 | O9: 330825908000000376 | P9: 3P
A10: 9 | B10: 衢州铁塔〔2024〕64号 | C10: 330800117587 | D10: 1KV以下电力电缆 | E10: 电力电缆 | F10: 15082.98 | G10: 2281.36 | H10: 12801.62 | I10: 5 | J10: 米 | L10: 4x16 | N10: 龙游东华鹁鸪头 | O10: 330825908000000376 | P10: 电力电缆
A11: 10 | B11: 衢州铁塔〔2024〕64号 | C11: 330800319495 | D11: 动力及环境监控单元 | E11: 动环监控 | F11: 3147.55 | G11: 94.43 | H11: 3053.12 | I11: 1 | J11: 套 | L11: 主设备室内型成套设备基本配置模型 | N11: 龙游东华鹁鸪头 | O11: 330825908000000376 | P11: FSU
A12: 11 | B12: 衢州铁塔〔2024〕64号 | C12: 330800333649 | D12: 基站构筑物扩容资产 | E12: 扩容资产 | F12: 415 | G12: 318.17 | H12: 96.83 | I12: 1 | J12: 个 | L12: 电控锁 | N12: 龙游东华鹁鸪头 | O12: 330825908000000376 | P12: 电控锁
A13: 12 | B13: 衢州铁塔〔2024〕64号 | C13: 330800346359 | D13: 电力引入扩容资产 | E13: 扩容资产 | F13: 580.11 | G13: 325.95 | H13: 254.16 | I13: 1 | J13: 个 | L13: 直流计量终端6分路 | N13: 龙游东华鹁鸪头 | O13: 330825908000000376 | P13: 分路计量
A14: 13 | B14: 衢州铁塔〔2024〕64号 | C14: 330800349998 | D14: 机房配套扩容资产 | E14: 扩容资产 | F14: 118 | G14: 55.99 | H14: 62.01 | I14: 1 | J14: 个 | L14: 监控传感器智能门禁配套物资蓝牙钥匙 | N14: 龙游东华鹁鸪头 | O14: 330825908000000376 | P14: 蓝牙钥匙
A15: 14 | B15: 衢州铁塔〔2024〕64号 | C15: 330800315311 | D15: 动力及环境监控单元 | E15: 动环监控 | F15: 3390.01 | G15: 101.7 | H15: 3288.31 | I15: 1 | J15: 个 | L15: ZXM10/EISU | N15: 衢江全旺饭甑山 | O15: 330803500000000001 | P15: FSU
A16: 15 | B16: 衢州铁塔〔2024〕64号 | C16: 330800313648 | D16: 动力及环境监控单元 | E16: 动环监控 | F16: 3430.04 | G16: 102.9 | H16: 3327.14 | I16: 1 | J16: 套 | L16: 主设备室内型成套设备基本配置模型 | N16: 衢江新农都东 | O16: 330803500000000096 | P16: FSU
A17: 16 | B17: 衢州铁塔〔2024〕64号 | C17: 330800309699_2 | D17: 一体化机柜 | E17: 开关电源 | F17: 808.87 | G17: 24.27 | H17: 784.6 | I17: 1 | J17: 个 | L17: 二组200Ah电池空间 | N17: 衢江东方物流 | O17: 330803500000000019 | P17: 嵌入式开关电源
A18: 17 | B18: 衢州铁塔〔2024〕64号 | C18: 330800320686 | D18: 普通空调柜式 | E18: 空调 | F18: 7321.87 | G18: 219.66 | H18: 7102.21 | I18: 1 | J18: 台 | L18: 3P单冷三相整机 | N18: 衢州天帛竹业 | O18: 330803908000000573 | P18: 3P
A19: 18 | B19: 衢州铁塔〔2024〕64号 | C19: 330800305033 | D19: (北京融和创)-空调及空调零部件-空调 | E19: 空调 | F19: 6120.39 | G19: 183.61 | H19: 5936.78 | I19: 1 | J19: 台 | L19: 3P 三相柜式（单冷） | N19: 衢江金山公园 | O19: 33080301000052 | P19: 3P
A20: 19 | B20: 衢州铁塔〔2024〕64号 | C20: 330800305034 | D20: (省邮电工程)-配电箱-交流配电箱 | E20: 交流配电箱 | F20: 4802.75 | G20: 144.08 | H20: 4658.67 | I20: 1 | J20: 个 | L20: 壁挂式380V/100A 内置120KA SPD（1路输入，需另配油机切换箱） | N20: 衢江金山公园 | O20: 33080301000052 | P20: 交流配电箱
A21: 20 | B21: 衢州铁塔〔2024〕64号 | C21: 330800305035 | D21: (杭州中恒)-开关电源及电源模块-开关电源 | E21: 开关电源 | F21: 8694.83 | G21: 260.84 | H21: 8433.99 | I21: 1 | J21: 架 | L21: 落地式开关电源-48V/600A方案A | N21: 衢江金山公园 | O21: 33080301000052 | P21: 组合式开关电源
A22: 21 | B22: 衢州铁塔〔2024〕64号 | C22: 330800313581 | D22: 动力及环境监控单元 | E22: 动环监控 | F22: 5075.96 | G22: 152.28 | H22: 4923.68 | I22: 1 | J22: 个 | L22: DAM-21601-T | N22: 衢江金山公园 | O22: 33080301000052 | P22: FSU
A23: 22 | B23: 衢州铁塔〔2024〕64号 | C23: 330800329584 | D23: 机房配套扩容资产 | E23: 扩容资产 | F23: 1239.49 | G23: 37.18 | H23: 1202.31 | I23: 1 | J23: 个 | L23: RRU安装架室内RRU安装架 | N23: 衢江金山公园 | O23: 33080301000052 | P23: RRU安装架
A24: 23 | B24: 衢州铁塔〔2024〕64号 | C24: 330800334165 | D24: 电力引入扩容资产 | E24: 扩容资产 | F24: 442.74 | G24: 195.61 | H24: 247.13 | I24: 1 | J24: 个 | L24: 霍尔传感器电流型输入100A/输出4-20mA | N24: 衢江金山公园 | O24: 33080301000052 | P24: 霍尔传感器
A25: 24 | B25: 衢州铁塔〔2024〕64号 | C25: 330800344071 | D25: 电源扩容资产 | E25: 扩容资产 | F25: 1344.69 | G25: 438.87 | H25: 905.82 | I25: 1 | J25: 个 | L25: 组合式高频开关电源配件整流模块50A高效 | N25: 衢江金山公园 | O25: 33080301000052 | P25: 整流模块
A26: 25 | B26: 衢州铁塔〔2024〕64号 | C26: 330800346117 | D26: 电源扩容资产 | E26: 扩容资产 | F26: 1560.85 | G26: 635.53 | H26: 925.32 | I26: 1 | J26: 个 | L26: 组合式高频开关电源配件整流模块50A高效 | N26: 衢江金山公园 | O26: 33080301000052 | P26: 整流模块
A27: 26 | B27: 衢州铁塔〔2024〕64号 | C27: 330800354413 | D27: 基站构筑物扩容资产 | E27: 扩容资产 | F27: 653.58 | G27: 471 | H27: 182.58 | I27: 1 | J27: 个 | L27: 电控锁 | N27: 衢江金山公园 | O27: 33080301000052 | P27: 电控锁
A28: 27 | B28: 衢州铁塔〔2024〕64号 | C28: 330800357093 | D28: 基站机房扩容资产 | E28: 扩容资产 | F28: 59.09 | G28: 53.2 | H28: 5.89 | I28: 3 | J28: 米 | L28: 4X25 | N28: 衢江金山公园 | O28: 33080301000052 | P28: 电力电缆
A29: 28 | B29: 衢州铁塔〔2024〕64号 | C29: 330800314080 | D29: 动力及环境监控单元 | E29: 动环监控 | F29: 3013.79 | G29: 90.41 | H29: 2923.38 | I29: 1 | J29: 套 | L29: 主设备室内型成套设备基本配置模型 | N29: 江山花坟头 | O29: 330881908000000247 | P29: FSU
A30: 29 | B30: 衢州铁塔〔2024〕64号 | C30: 330800322621 | D30: 动力及环境监控单元 | E30: 动环监控 | F30: 3207.94 | G30: 96.24 | H30: 3111.7 | I30: 1 | J30: 套 | L30: 主设备室内型成套设备双柜配置模型 | N30: 江山开源路友和机械 | O30: 330881500000000146 | P30: FSU
A31: 30 | B31: 衢州铁塔〔2024〕64号 | C31: 330800110302 | D31: 开关电源 | E31: 开关电源 | F31: 932.4 | G31: 27.97 | H31: 904.43 | I31: 1 | J31: 个 | L31: 48-400A(50A模块)-150 | N31: 江山前头山 | O31: 330881908000000004 | P31: 组合式开关电源
A32: 31 | B32: 衢州铁塔〔2024〕64号 | C32: 330800310175 | D32: 普通空调柜式 | E32: 空调 | F32: 6164.98 | G32: 184.95 | H32: 5980.03 | I32: 1 | J32: 台 | L32: 3P单冷三相整机 | N32: 江山清林木业 | O32: 330881908000000291 | P32: 3P
A33: 32 | B33: 衢州铁塔〔2024〕64号 | C33: 330800319665 | D33: 动力及环境监控单元 | E33: 动环监控 | F33: 3565.29 | G33: 106.96 | H33: 3458.33 | I33: 1 | J33: 套 | L33: 主设备室内型成套设备基本配置模型 | N33: 新塘边岙底 | O33: 330881908000001041 | P33: FSU
A34: 33 | B34: 衢州铁塔〔2024〕64号 | C34: 330800303430 | D34: 嵌入式高频开关电源-48V/300A高效系统(50A高效模块，共用电源系统，三相交流输入)-100A | E34: 开关电源 | F34: 6706.72 | G34: 201.2 | H34: 6505.52 | I34: 1 | J34: 套 | L34: 嵌入式高频开关电源-48V/300A高效系统(50A高效模块，共用电源系统，三相交流输入)-100A | N34: 江山碗窑凤凰山三期 | O34: 330881500000000055 | P34: 嵌入式开关电源
A35: 34 | B35: 衢州铁塔〔2024〕64号 | C35: 330800309184 | D35: 组合式开关电源 | E35: 开关电源 | F35: 8670.43 | G35: 260.11 | H35: 8410.32 | I35: 1 | J35: 个 | L35: 48V/600A高效系统(50A高效模块)150A | N35: 江山凤林茅畈新村搬迁 | O35: 330881500000000069 | P35: 组合式开关电源
A36: 35 | B36: 衢州铁塔〔2024〕64号 | C36: 330800335740 | D36: 嵌入式开关电源 | E36: 开关电源 | F36: 7608.62 | G36: 843.29 | H36: 6765.33 | I36: 1 | J36: 架 | L36: 48V/300A高效系统(50A高效模块，共用电源系统，三相交流输入)100A | N36: 江山廿八都浮盖山 | O36: 330881908000000796 | P36: 嵌入式开关电源
A37: 36 | B37: 衢州铁塔〔2024〕64号 | C37: 330800129021 | D37: 专用空调 | E37: 空调 | F37: 1183.19 | G37: 35.5 | H37: 1147.69 | I37: 1 | J37: 个 | L37: KF-53GW-B1 | N37: 江山周仓坞 | O37: 330881908000000281 | P37: 2P
A38: 37 | B38: 衢州铁塔〔2024〕64号 | C38: 330800318389 | D38: 普通空调柜式 | E38: 空调 | F38: 6632.69 | G38: 198.98 | H38: 6433.71 | I38: 1 | J38: 台 | L38: 3P单冷三相整机 | N38: 江山喇嘛 | O38: 330881908000000110 | P38: 3P
A39: 38 | B39: 衢州铁塔〔2024〕64号 | C39: 330800314081 | D39: 普通空调柜式 | E39: 空调 | F39: 6510.36 | G39: 195.31 | H39: 6315.05 | I39: 1 | J39: 台 | L39: 3P单冷三相整机 | N39: 江山花坟头 | O39: 330881908000000247 | P39: 3P
A40: 39 | B40: 衢州铁塔〔2024〕64号 | C40: 330800111717 | D40: 专用空调 | E40: 空调 | F40: 10720 | G40: 321.6 | H40: 10398.4 | I40: 1 | J40: 个 | L40: SPW-V253DHL5 | N40: 开化河滩 | O40: 330824908000000556 | P40: 3P
A41: 40 | B41: 衢州铁塔〔2024〕64号 | C41: 330800106911 | D41: 专用空调 | E41: 空调 | F41: 949 | G41: 28.47 | H41: 920.53 | I41: 1 | J41: 个 | L41: KF-72LW-17Y2 | N41: 开化黄庄 | O41: 330824908000000467 | P41: 3P
A42: 41 | B42: 衢州铁塔〔2024〕64号 | C42: 330800305089 | D42: (杭州中恒)-开关电源及电源模块-开关电源 | E42: 开关电源 | F42: 9430.9 | G42: 282.93 | H42: 9147.97 | I42: 1 | J42: 架 | L42: 落地式开关电源-48V/600A方案A | N42: 开化杭新景芹源 | O42: 33082401000091 | P42: 组合式开关电源
A43: 42 | B43: 衢州铁塔〔2024〕64号 | C43: 330800314630 | D43: 动力及环境监控单元 | E43: 动环监控 | F43: 3891.8 | G43: 116.75 | H43: 3775.05 | I43: 1 | J43: 套 | L43: ZXM10/EISU | N43: 开化苏庄洪源 | O43: 330824500000000022 | P43: FSU
A44: 43 | B44: 衢州铁塔〔2024〕64号 | C44: 330800315847 | D44: 动环监控设备FSU | E44: 动环监控 | F44: 3885.87 | G44: 116.58 | H44: 3769.29 | I44: 1 | J44: 套 | L44: 动力及环境监控单元主设备设备室内型成套设备 | N44: 开化杭新景芹源 | O44: 33082401000091 | P44: FSU
A45: 44 | B45: 衢州铁塔〔2024〕64号 | C45: 330800119896 | D45: 整流设备-组合开关电源 | E45: 开关电源 | F45: 1073.4 | G45: 32.2 | H45: 1041.2 | I45: 1 | J45: 个 | L45: 48V-300A(50A模块)-100A | N45: 常山城市投资公司 | O45: 330822908000000434 | P45: 组合式开关电源
A46: 45 | B46: 衢州铁塔〔2024〕64号 | C46: 330800122389 | D46: 开关电源 | E46: 开关电源 | F46: 875.95 | G46: 26.28 | H46: 849.67 | I46: 1 | J46: 个 | L46: 48V-150(30A模块)-60 | N46: 常山达塘 | O46: 330822908000000345 | P46: 嵌入式开关电源
A47: 46 | B47: 衢州铁塔〔2024〕64号 | C47: 330800353462 | D47: 模块化开关电源 | E47: 开关电源 | F47: 8132.92 | G47: 4078.06 | H47: 4054.86 | I47: 1 | J47: 套 | L47: 模块化开关电源小型50A整机48V/300A高效系统-室外（6槽位）集约化采购模块化电源 | N47: 衢州江湾半岛 | O47: 330802500000001672 | P47: 嵌入式开关电源
A48: 47 | B48: 衢州铁塔〔2024〕64号 | C48: 330800326822 | D48: 1KV以下电力电缆 | E48: 电力电缆 | F48: 9801.28 | G48: 3598.82 | H48: 6202.46 | I48: 1 | J48: 米 | L48: 4x16 | N48: 柯城元立烧结大楼 | O48: 330802500000000142 | P48: 电力电缆
A49: 48 | B49: 衢州铁塔〔2024〕64号 | C49: 330800326823 | D49: 动力及环境监控单元 | E49: 动环监控 | F49: 5916.56 | G49: 177.5 | H49: 5739.06 | I49: 1 | J49: 套 | L49: 主设备室内型成套设备双柜配置模型 | N49: 柯城元立烧结大楼 | O49: 330802500000000142 | P49: FSU
A50: 49 | B50: 衢州铁塔〔2024〕64号 | C50: 330800326824 | D50: 嵌入式开关电源 | E50: 开关电源 | F50: 7870.66 | G50: 236.12 | H50: 7634.54 | I50: 1 | J50: 架 | L50: 48V/300A高效系统(50A高效模块，共用电源系统，三相交流输入)100A | N50: 柯城元立烧结大楼 | O50: 330802500000000142 | P50: 嵌入式开关电源
A51: 50 | B51: 衢州铁塔〔2024〕64号 | C51: 330800326831_1 | D51: 一体化电源电池综合柜 | E51: 机柜空调 | F51: 1324.24 | G51: 39.73 | H51: 1284.51 | I51: 1 | J51: 台 | L51: 800*800*18001500W交流空调+300W直流空调、PU | N51: 柯城元立烧结大楼 | O51: 330802500000000142 | P51: 1P
A52: 51 | B52: 衢州铁塔〔2024〕64号 | C52: 330800326831_2 | D52: 一体化电源电池综合柜 | E52: 一体化机柜 | F52: 5296.98 | G52: 158.91 | H52: 5138.07 | I52: 1 | J52: 台 | L52: 800*800*18001500W交流空调+300W直流空调、PU | N52: 柯城元立烧结大楼 | O52: 330802500000000142 | P52: 一体化机柜
A53: 52 | B53: 衢州铁塔〔2024〕64号 | C53: 330800326832_1 | D53: 一体化设备柜 | E53: 一体化机柜 | F53: 4133.02 | G53: 123.99 | H53: 4009.03 | I53: 1 | J53: 台 | L53: 800*800*18002000W交流空调、PU | N53: 柯城元立烧结大楼 | O53: 330802500000000142 | P53: 一体化机柜
A54: 53 | B54: 衢州铁塔〔2024〕64号 | C54: 330800326832_2 | D54: 一体化设备柜 | E54: 机柜空调 | F54: 1033.26 | G54: 31 | H54: 1002.26 | I54: 1 | J54: 台 | L54: 800*800*18002000W交流空调、PU | N54: 柯城元立烧结大楼 | O54: 330802500000000142 | P54: 2P
A55: 54 | B55: 衢州铁塔〔2024〕64号 | C55: 330800340617 | D55: 机房配套扩容资产 | E55: 扩容资产 | F55: 459.8 | G55: 106.71 | H55: 353.09 | I55: 1 | J55: 个 | L55: 监控传感器智能门禁配套物资简易锁(一体化柜) | N55: 柯城元立烧结大楼 | O55: 330802500000000142 | P55: 简易锁
A56: 55 | B56: 衢州铁塔〔2024〕64号 | C56: 330800112606 | D56: 低压避雷设施 | E56: 低压避雷设施 | F56: 235.37 | G56: 7.06 | H56: 228.31 | I56: 1 | J56: 面 | L56: VAL-MS | N56: 衢州南湖春苑 | O56: 330802908000000271 | P56: 低压避雷设施
A57: 56 | B57: 衢州铁塔〔2024〕64号 | C57: 330800119846 | D57: 整流机架 | E57: 开关电源 | F57: 2925.37 | G57: 87.76 | H57: 2837.61 | I57: 1 | J57: 个 | L57: 48V-120A(30A模块)-60 | N57: 衢州南湖春苑 | O57: 330802908000000271 | P57: 嵌入式开关电源
A58: 57 | B58: 衢州铁塔〔2024〕64号 | C58: 330800300595 | D58: 一体化电源 | E58: 一体化机柜 | F58: 8458.78 | G58: 253.76 | H58: 8205.02 | I58: 1 | J58: 台 | L58: 无 | N58: 衢州南湖春苑 | O58: 330802908000000271 | P58: 一体化机柜
A59: 58 | B59: 衢州铁塔〔2024〕64号 | C59: 330800341381 | D59: 机房配套扩容资产 | E59: 扩容资产 | F59: 293.05 | G59: 71.91 | H59: 221.14 | I59: 1 | J59: 个 | L59: 普通空调基站智能空调控制器 | N59: 衢州南湖春苑 | O59: 330802908000000271 | P59: 空调控制器
A60: 59 | B60: 总经理办公会纪要〔2024〕第33期 | C60: 330800301228 | D60: 一体化电源 | E60: 一体化机柜 | F60: 3038.21 | G60: 91.15 | H60: 2947.06 | I60: 1 | J60: 台 | L60: 无 | N60: 龙游石佛三门源 | O60: 330825908000000026 | P60: 一体化机柜
A61: 60 | B61: 总经理办公会纪要〔2024〕第33期 | C61: 330800124041 | D61: 智能通风系统 | E61: 空调 | F61: 1678.45 | G61: 50.35 | H61: 1628.1 | I61: 1 | J61: 套 | L61: SDVCOM | N61: 龙游东华鸡鸣 | O61: 330825908000000402 | P61: 3P
A62: 61 | B62: 总经理办公会纪要〔2024〕第33期 | C62: 330800310442 | D62: 普通空调柜式 | E62: 空调 | F62: 6164.98 | G62: 184.95 | H62: 5980.03 | I62: 1 | J62: 台 | L62: 3P单冷三相整机 | N62: 龙游龙化 | O62: 330825908000000465 | P62: 3P
A63: 62 | B63: 总经理办公会纪要〔2024〕第33期 | C63: 330800312934 | D63: 基站舒适空调3匹（柜式）（三相）-整机（单冷） | E63: 空调 | F63: 6180.47 | G63: 185.41 | H63: 5995.06 | I63: 1 | J63: 台 | L63: 基站舒适空调3匹（柜式）（三相）-整机（单冷） | N63: 龙游小南海马坪张 | O63: 330825908000000343 | P63: 3P
A64: 63 | B64: 总经理办公会纪要〔2024〕第33期 | C64: 330800123653 | D64: 专用空调 | E64: 空调 | F64: 257.5 | G64: 7.73 | H64: 249.77 | I64: 1 | J64: 个 | L64: SPW-V253DHL5 | N64: 龙游寺下村 | O64: 330825908000000615 | P64: 3P
A65: 64 | B65: 总经理办公会纪要〔2024〕第33期 | C65: 330800301445 | D65: 横路祝C网基站分体空调系统-室内机 | E65: 空调 | F65: 6886.84 | G65: 206.61 | H65: 6680.23 | I65: 1 | J65: 台 | L65: KF-72W-SNG354 | N65: 龙游湖镇横路祝 | O65: 330825908000000241 | P65: 3P
A66: 65 | B66: 总经理办公会纪要〔2024〕第33期 | C66: 330800126764 | D66: 专用空调 | E66: 空调 | F66: 1217.68 | G66: 36.53 | H66: 1181.15 | I66: 1 | J66: 个 | L66: KFRD-72LW-JHS(2) | N66: 龙游溪口交管站 | O66: 330825908000000546 | P66: 3P
A67: 66 | B67: 总经理办公会纪要〔2024〕第33期 | C67: 330800324952 | D67: 捷马化工L网基站分体空调系统-室内机 | E67: 空调 | F67: 7000 | G67: 210 | H67: 6790 | I67: 1 | J67: 台 | L67: KF-72W-SNG354 | N67: 龙游捷马化工 | O67: 330825700000235650 | P67: 3P
A68: 67 | B68: 总经理办公会纪要〔2024〕第33期 | C68: 330800122992 | D68: 专用空调 | E68: 空调 | F68: 257.5 | G68: 7.73 | H68: 249.77 | I68: 1 | J68: 个 | L68: SPW-V253DHL5 | N68: 龙游夏家 | O68: 330825908000000482 | P68: 3P
A69: 68 | B69: 总经理办公会纪要〔2024〕第33期 | C69: 330800123543 | D69: 空调电源设备空气调节设备中央空调设备新风机 | E69: 空调 | F69: 829.46 | G69: 24.88 | H69: 804.58 | I69: 1 | J69: 套 | L69: SLTF-1501 | N69: 龙游外贸 | O69: 330825908000000065 | P69: 3P
A70: 69 | B70: 总经理办公会纪要〔2024〕第33期 | C70: 330800121611 | D70: 交流配电箱 | E70: 交流配电箱 | F70: 2033.73 | G70: 61.01 | H70: 1972.72 | I70: 1 | J70: 个 | L70: ZBX1R-20(大) | N70: 龙游电信大楼 | O70: 330825908000000499 | P70: 交流配电箱
A71: 70 | B71: 总经理办公会纪要〔2024〕第33期 | C71: 330800319813 | D71: 普通空调柜式 | E71: 空调 | F71: 6632.69 | G71: 198.98 | H71: 6433.71 | I71: 1 | J71: 台 | L71: 3P单冷三相整机 | N71: 龙游下章 | O71: 330825908000000497 | P71: 3P
A72: 71 | B72: 总经理办公会纪要〔2024〕第33期 | C72: 330800123241 | D72: 专用空调 | E72: 空调 | F72: 1183.19 | G72: 35.5 | H72: 1147.69 | I72: 1 | J72: 个 | L72: KF-53GW-B1 | N72: 龙游杜山水泥厂 | O72: 330825908000000464 | P72: 2P
A73: 72 | B73: 总经理办公会纪要〔2024〕第33期 | C73: 330800305940 | D73: 基站舒适空调3匹（柜式）（三相）-整机（单冷） | E73: 空调 | F73: 7492.69 | G73: 224.78 | H73: 7267.91 | I73: 1 | J73: 台 | L73: 基站舒适空调3匹（柜式）（三相）-整机（单冷） | N73: 龙游模环米筛垄 | O73: 330825500000000060 | P73: 3P
A74: 73 | B74: 总经理办公会纪要〔2024〕第33期 | C74: 330800104285 | D74: 过压保护器 | E74: 过压保护器 | F74: 1718.49 | G74: 51.55 | H74: 1666.94 | I74: 1 | J74: 面 | L74: YD60K385-3+1J | N74: 江山梅苑宾馆 | O74: 330881908000000851 | P74: 过压保护器
A75: 74 | B75: 总经理办公会纪要〔2024〕第33期 | C75: 330800104286 | D75: 交流配电箱 | E75: 交流配电箱 | F75: 2757.71 | G75: 82.73 | H75: 2674.98 | I75: 1 | J75: 个 | L75: ZBX1R-20（大） | N75: 江山梅苑宾馆 | O75: 330881908000000851 | P75: 交流配电箱
A76: 75 | B76: 总经理办公会纪要〔2024〕第33期 | C76: 330800111994 | D76: 通用空调-通用空调 | E76: 空调 | F76: 228 | G76: 6.84 | H76: 221.16 | I76: 1 | J76: 台 | L76: kFR-50G-BP | N76: 江山梅苑宾馆 | O76: 330881908000000851 | P76: 3P
A77: 76 | B77: 总经理办公会纪要〔2024〕第33期 | C77: 330800124324 | D77: 整流设备-组合开关电源 | E77: 开关电源 | F77: 495.6 | G77: 14.87 | H77: 480.73 | I77: 1 | J77: 个 | L77: 48V-600A(50A模块)-150A | N77: 江山梅苑宾馆 | O77: 330881908000000851 | P77: 组合式开关电源
A78: 77 | B78: 总经理办公会纪要〔2024〕第33期 | C78: 330800301072 | D78: 开关电源 | E78: 开关电源 | F78: 710.31 | G78: 21.31 | H78: 689 | I78: 1 | J78: 个 | L78: ZXDPS500 | N78: 开化池淮星玉 | O78: 330824908000000074 | P78: 嵌入式开关电源
A79: 78 | B79: 总经理办公会纪要〔2024〕第33期 | C79: 330800106910 | D79: 专用空调 | E79: 空调 | F79: 949 | G79: 28.47 | H79: 920.53 | I79: 1 | J79: 个 | L79: KF-72LW-17Y2 | N79: 开化均墀 | O79: 330824908000000627 | P79: 3P
A80: 79 | B80: 总经理办公会纪要〔2024〕第33期 | C80: 330800315323 | D80: 动环监控设备FSU | E80: 动环监控 | F80: 3839.39 | G80: 115.18 | H80: 3724.21 | I80: 1 | J80: 套 | L80: 动力及环境监控单元主设备室内型成套设备 | N80: 开化新凉亭 | O80: 330824908000000268 | P80: FSU
A81: 80 | B81: 总经理办公会纪要〔2024〕第33期 | C81: 330800119987 | D81: 开关电源 | E81: 开关电源 | F81: 932.4 | G81: 27.97 | H81: 904.43 | I81: 1 | J81: 个 | L81: 48V-600A(50A模块)-100 | N81: 开化姜坞 | O81: 330824908000000486 | P81: 组合式开关电源
A82: 81 | B82: 总经理办公会纪要〔2024〕第33期 | C82: 330800103235 | D82: 低压避雷设施 | E82: 低压避雷设施 | F82: 102.26 | G82: 3.07 | H82: 99.19 | I82: 1 | J82: 面 | L82: VH40TA385W | N82: 衢州双港工业园 | O82: 330802908000000378 | P82: 低压避雷设施
A83: 82 | B83: 总经理办公会纪要〔2024〕第33期 | C83: 330800111210 | D83: 开关电源 | E83: 开关电源 | F83: 932.4 | G83: 27.97 | H83: 904.43 | I83: 1 | J83: 个 | L83: 48V-600A(50A模块)-150 | N83: 衢州双港工业园 | O83: 330802908000000378 | P83: 组合式开关电源
A84: 83 | B84: 总经理办公会纪要〔2024〕第33期 | C84: 330800111211 | D84: 供电计量设备 | E84: 供电计量设备 | F84: 2588.71 | G84: 370.61 | H84: 2218.1 | I84: 1 | J84: 台 | L84: XL-3 | N84: 衢州双港工业园 | O84: 330802908000000378 | P84: 交流配电箱
A85: 84 | B85: 总经理办公会纪要〔2024〕第33期 | C85: 330800329430 | D85: 机房配套扩容资产 | E85: 扩容资产 | F85: 1239.49 | G85: 37.18 | H85: 1202.31 | I85: 1 | J85: 个 | L85: RRU安装架室内RRU安装架 | N85: 衢州双港工业园 | O85: 330802908000000378 | P85: RRU安装架
A86: 85 | B86: 总经理办公会纪要〔2024〕第33期 | C86: 330800340575 | D86: 机房配套扩容资产 | E86: 扩容资产 | F86: 324.29 | G86: 71.26 | H86: 253.03 | I86: 1 | J86: 个 | L86: 普通空调基站智能空调控制器 | N86: 衢州双港工业园 | O86: 330802908000000378 | P86: 空调控制器
A87: 86 | B87: 总经理办公会纪要〔2024〕第33期 | C87: 330800344581 | D87: 基站机房扩容资产 | E87: 扩容资产 | F87: 647.59 | G87: 545.18 | H87: 102.41 | I87: 1 | J87: 米 | L87: 1X95 | N87: 衢州双港工业园 | O87: 330802908000000378 | P87: 电力电缆
A88: 87 | B88: 总经理办公会纪要〔2024〕第33期 | C88: 330800102316 | D88: 开关电源 | E88: 开关电源 | F88: 903.6 | G88: 27.11 | H88: 876.49 | I88: 1 | J88: 个 | L88: 48V-120A(30A模块)-60 | N88: 常山弄坞 | O88: 330822908000000227 | P88: 嵌入式开关电源
A89: 88 | B89: 总经理办公会纪要〔2024〕第33期 | C89: 330800109769 | D89: 整流设备-组合开关电源 | E89: 开关电源 | F89: 1000.8 | G89: 30.02 | H89: 970.78 | I89: 1 | J89: 个 | L89: 48V-300A(50A模块)-150A | N89: 常山球川三溪-2 | O89: 330822908000000406 | P89: 组合式开关电源
A90: 89 | B90: 总经理办公会纪要〔2024〕第33期 | C90: 330800122344 | D90: 开关电源 | E90: 开关电源 | F90: 932.4 | G90: 27.97 | H90: 904.43 | I90: 1 | J90: 个 | L90: 48V-600A(50A模块)-100 | N90: 常山油车 | O90: 330822908000000223 | P90: 组合式开关电源
A91: 90 | B91: 总经理办公会纪要〔2024〕第33期 | C91: 330800107530 | D91: 整流设备-组合开关电源 | E91: 开关电源 | F91: 3868.07 | G91: 116.04 | H91: 3752.03 | I91: 1 | J91: 个 | L91: 48V-500A(50A模块)-150A | N91: 常山天马喜雀弄 | O91: 330822908000000448 | P91: 组合式开关电源
A92: 91 | B92: 总经理办公会纪要〔2024〕第33期 | C92: 330800110344 | D92: 天马孔家弄C网基站-天马孔家弄C网基站直流供电系统-组合开关电源 | E92: 开关电源 | F92: 2254.46 | G92: 67.63 | H92: 2186.83 | I92: 1 | J92: 个 | L92: ZXDU68T601V4.1R01M01 | N92: 常山天马孔家弄 | O92: 330822908000000559 | P92: 组合式开关电源
A93: 92 | B93: 总经理办公会纪要〔2024〕第33期 | C93: 330800101795 | D93: 整流设备-小型组合开关电源 | E93: 开关电源 | F93: 856.15 | G93: 25.68 | H93: 830.47 | I93: 1 | J93: 个 | L93: 中达DUM94A-48-50 | N93: 常山何家乡 | O93: 330822908000000577 | P93: 组合式开关电源
A94: 93 | B94: 总经理办公会纪要〔2024〕第33期 | C94: 330800123263 | D94: 专用空调 | E94: 空调 | F94: 774 | G94: 23.22 | H94: 750.78 | I94: 1 | J94: 个 | L94: KF-53GW-B1 | N94: 常山灵峰寺 | O94: 330822908000000244 | P94: 2P
A95: 94 | B95: 总经理办公会纪要〔2024〕第33期 | C95: 330800308865 | D95: 普通空调柜式 | E95: 空调 | F95: 6164.98 | G95: 184.95 | H95: 5980.03 | I95: 1 | J95: 台 | L95: 3P单冷三相整机 | N95: 常山彭川 | O95: 330822908000000304 | P95: 2P
A96: 95 | B96: 总经理办公会纪要〔2024〕第33期 | C96: 330800317826 | D96: 普通空调柜式 | E96: 空调 | F96: 6632.69 | G96: 198.98 | H96: 6433.71 | I96: 1 | J96: 台 | L96: 3P单冷三相整机 | N96: 常山城南小区 | O96: 330822908000000612 | P96: 3P
A97: 96 | B97: 总经理办公会纪要〔2024〕第33期 | C97: 330800314447 | D97: 动环监控设备FSU | E97: 动环监控 | F97: 3946.51 | G97: 118.4 | H97: 3828.11 | I97: 1 | J97: 套 | L97: 动力及环境监控单元主设备设备室内型成套设备 | N97: 常山赛得产业园 | O97: 330822500000000008 | P97: FSU
A98: 97 | B98: 总经理办公会纪要〔2024〕第33期 | C98: 330800376269 | D98: 模块化开关电源-150A-室外型-整机 | E98: 开关电源 | F98: 8078.91 | G98: 6884.26 | H98: 1194.65 | I98: 1 | J98: 套 | L98: IPS75Q-48V300A-02 | N98: 常山塞德健康小镇 | O98: 330822500010001643 | P98: 模块化开关电源
A99: 98 | B99: 总经理办公会纪要〔2024〕第33期 | C99: 330800315445 | D99: 嵌入式高频开关电源-48V/300A高效系统 | E99: 开关电源 | F99: 6916.31 | G99: 207.49 | H99: 6708.82 | I99: 1 | J99: 套 | L99: 嵌入式高频开关电源-48V/300A高效系统 | N99: 常山东案东头 | O99: 330822908000000569 | P99: 嵌入式开关电源
A100: 99 | B100: 总经理办公会纪要〔2024〕第33期 | C100: 330800126657 | D100: 专用空调 | E100: 空调 | F100: 257.5 | G100: 7.73 | H100: 249.77 | I100: 1 | J100: 个 | L100: SPW-V253DHL5 | N100: 常山渣濑湾 | O100: 330822908000000214 | P100: 3P
A101: 100 | B101: 总经理办公会纪要〔2024〕第33期 | C101: 330800111932 | D101: 常山朱家坞C网基站分体空调系统-室内机 | E101: 空调 | F101: 3316.5 | G101: 99.5 | H101: 3217 | I101: 1 | J101: 台 | L101: KF-75LW-STK-N3 | N101: 常山天马朱家坞 | O101: 330822908000000541 | P101: 3P
A102: 101 | B102: 总经理办公会纪要〔2024〕第33期 | C102: 330800320164 | D102: 动力及环境监控单元 | E102: 动环监控 | F102: 3452.67 | G102: 103.58 | H102: 3349.09 | I102: 1 | J102: 套 | L102: 主设备室内型成套设备双柜配置模型 | N102: 常山大坪坡隧道东口 | O102: 330822500000000107 | P102: FSU
A103: 102 | B103: 总经理办公会纪要〔2024〕第33期 | C103: 330800107156 | D103: 整流设备-小型组合开关电源 | E103: 开关电源 | F103: 746.35 | G103: 22.39 | H103: 723.96 | I103: 1 | J103: 个 | L103: 中达MCS-3000-150A | N103: 衢江上方玳堰-2 | O103: 330803908000000152 | P103: 组合式开关电源
A104: 103 | B104: 总经理办公会纪要〔2024〕第33期 | C104: 330800115502 | D104: 交流配电箱 | E104: 交流配电箱 | F104: 839.17 | G104: 25.18 | H104: 813.99 | I104: 1 | J104: 个 | L104: NXK1 | N104: 衢江上方玳堰-2 | O104: 330803908000000152 | P104: 交流配电箱
A105: 104 | B105: 总经理办公会纪要〔2024〕第33期 | C105: 330800117576 | D105: 1KV以下电力电缆 | E105: 电力电缆 | F105: 23609.01 | G105: 3379.97 | H105: 20229.04 | I105: 10 | J105: 米 | L105: 1X35 | N105: 衢江上方玳堰-2 | O105: 330803908000000152 | P105: 电力电缆
A106: 105 | B106: 总经理办公会纪要〔2024〕第33期 | C106: 330800300670 | D106: 一体化监控 | E106: 动环监控 | F106: 2434.92 | G106: 73.05 | H106: 2361.87 | I106: 1 | J106: 个 | L106: KD801 | N106: 衢江上方玳堰-2 | O106: 330803908000000152 | P106: 一体化监控
A107: 106 | B107: 总经理办公会纪要〔2024〕第33期 | C107: 330800300672 | D107: 一体化监控 | E107: 动环监控 | F107: 6525.36 | G107: 195.76 | H107: 6329.6 | I107: 1 | J107: 个 | L107: KD801 | N107: 衢江上方玳堰-2 | O107: 330803908000000152 | P107: 一体化监控
A108: 107 | B108: 总经理办公会纪要〔2024〕第33期 | C108: 330800310125 | D108: 普通空调壁挂 | E108: 空调 | F108: 4152.88 | G108: 124.59 | H108: 4028.29 | I108: 1 | J108: 台 | L108: 2P单冷单相整机 | N108: 衢江上方玳堰-2 | O108: 330803908000000152 | P108: 2P
A109: 108 | B109: 总经理办公会纪要〔2024〕第33期 | C109: 330800320428 | D109: 整流模块 | E109: 整流模块 | F109: 1088.72 | G109: 32.66 | H109: 1056.06 | I109: 1 | J109: 个 | L109: 高效模块50A | N109: 衢江上方玳堰-2 | O109: 330803908000000152 | P109: 整流模块
A110: 109 | B110: 总经理办公会纪要〔2024〕第33期 | C110: 330800326956 | D110: 动力及环境监控单元 | E110: 动环监控 | F110: 3574.91 | G110: 107.25 | H110: 3467.66 | I110: 1 | J110: 套 | L110: 主设备室内型成套设备基本配置模型 | N110: 衢江上方玳堰-2 | O110: 330803908000000152 | P110: FSU
A111: 110 | B111: 总经理办公会纪要〔2024〕第33期 | C111: 330800332106 | D111: 机房配套扩容资产 | E111: 开关电源 | F111: 48.72 | G111: 1.46 | H111: 47.26 | I111: 1 | J111: 个 | L111: 监控传感器智能门禁配套物资电源转换模块 | N111: 衢江上方玳堰-2 | O111: 330803908000000152 | P111: 电源转换模块
A112: 111 | B112: 总经理办公会纪要〔2024〕第33期 | C112: 330800342977 | D112: 电源扩容资产 | E112: 扩容资产 | F112: 617.07 | G112: 176.49 | H112: 440.58 | I112: 1 | J112: 个 | L112: 通用配件电表箱250mm*400mm*140mm | N112: 衢江上方玳堰-2 | O112: 330803908000000152 | P112: 电表箱
A113: 112 | B113: 总经理办公会纪要〔2024〕第33期 | C113: 330800343338 | D113: 电力引入扩容资产 | E113: 扩容资产 | F113: 580.11 | G113: 331.54 | H113: 248.57 | I113: 1 | J113: 个 | L113: 霍尔传感器电流型输入100A/输出4-20mA | N113: 衢江上方玳堰-2 | O113: 330803908000000152 | P113: 霍尔传感器
A114: 113 | C114: 无卡片资产 | D114: 整流模块 | E114: 整流模块 | I114: 29 | J114: 个 | L114: 整流模块 | P114: 整流模块
A115: 114 | C115: 无卡片资产 | D115: 灭火器 | E115: 灭火器 | I115: 100 | J115: 个 | L115: 灭火器 | P115: 灭火器
A116: 115 | C116: 无卡片资产 | D116: 铁甲机房标牌标签 | E116: 标签标牌 | I116: 1 | J116: 个 | L116: 标签标牌 | P116: 标签标牌
A117: 116 | B117: 综合〔2023〕64号 | C117: 330800000028 | D117: 夏普 XG-FX8305A投影仪 | E117: 投影仪 | F117: 3158.97 | G117: 94.77 | H117: 3064.2 | I117: 1 | J117: 台 | L117: 夏普 XG-FX8305A | N117: 衢州市公共库位 | O117: 330800
A118: 117 | B118: 综合〔2023〕64号 | C118: 330800000029 | D118: 夏普 XG-FX850A投影仪 | E118: 投影仪 | F118: 4269.23 | G118: 128.08 | H118: 4141.15 | I118: 1 | J118: 台 | L118: 夏普 XG-FX850A | N118: 衢州市公共库位 | O118: 330800
A119: 118 | B119: 综合〔2023〕64号 | C119: 330800000031 | D119: 一体机 | E119: 打印机设备 | F119: 13700 | G119: 411 | H119: 13289 | I119: 1 | J119: 台 | L119: 三星 SCX-8240NA | N119: 衢州市公共库位 | O119: 330800
A120: 119 | B120: 综合〔2023〕64号 | C120: 330800002922 | D120: 台式电脑 | E120: 办公设备电脑 | F120: 4443.59 | G120: 133.31 | H120: 4310.28 | I120: 1 | J120: 台 | L120: DELL VOSTRO 3900-R5938C | N120: 衢州市公共库位 | O120: 330800
A121: 120 | B121: 综合〔2023〕64号 | C121: 330800304668 | D121: 笔记本电脑 | E121: 办公设备电脑 | F121: 5247.86 | G121: 157.44 | H121: 5090.42 | I121: 1 | J121: 台 | L121: THINKPAD X250 | N121: 衢州市公共库位 | O121: 330800
A122: 121 | B122: 综合〔2023〕64号 | C122: 330800306035 | D122: 黑白激光多功能一体机 | E122: 打印机设备 | F122: 2982.91 | G122: 89.49 | H122: 2893.42 | I122: 1 | J122: 台 | L122: 佳能（Canon）MF229dw | N122: 衢州市公共库位 | O122: 330800
A123: 122 | B123: 综合〔2023〕64号 | C123: 330800311686 | D123: 复印机 | E123: 多功能一体化机 | F123: 12820.51 | G123: 384.62 | H123: 12435.89 | I123: 1 | J123: 台 | L123: 京瓷6525 | N123: 衢州市公共库位 | O123: 330800
A124: 123 | B124: 综合〔2023〕64号 | C124: 330800321631 | D124: 台式电脑 | E124: 办公设备电脑 | F124: 4238.46 | G124: 127.15 | H124: 4111.31 | I124: 1 | J124: 台 | L124: DELL | N124: 衢州市公共库位 | O124: 330800
A125: 124 | B125: 综合〔2023〕64号 | C125: 330800321623 | D125: 台式电脑 | E125: 办公设备电脑 | F125: 4238.46 | G125: 127.15 | H125: 4111.31 | I125: 1 | J125: 台 | L125: DELL | N125: 衢州市公共库位 | O125: 330800
A126: 125 | B126: 综合〔2023〕64号 | C126: 330800321624 | D126: 台式电脑 | E126: 办公设备电脑 | F126: 4238.46 | G126: 127.15 | H126: 4111.31 | I126: 1 | J126: 台 | L126: DELL | N126: 衢州市公共库位 | O126: 330800
A127: 126 | B127: 综合〔2023〕64号 | C127: 330800321636 | D127: 台式电脑 | E127: 办公设备电脑 | F127: 4238.46 | G127: 127.15 | H127: 4111.31 | I127: 1 | J127: 台 | L127: DELL | N127: 衢州市公共库位 | O127: 330800
A128: 127 | B128: 综合〔2024〕26号 | C128: 330800000019 | D128: HP M451DN彩色激光打印机 | E128: 打印机设备 | F128: 4863.25 | G128: 145.9 | H128: 4717.35 | I128: 1 | J128: 台 | L128: HP M451DN | N128: 衢州市公共库位 | O128: 330800
A129: 128 | B129: 综合〔2024〕26号 | C129: 330800002911 | D129: 打印机 | E129: 打印机设备 | F129: 760.68 | G129: 22.82 | H129: 737.86 | I129: 1 | J129: 台 | L129: HP P1108 | N129: 衢州市公共库位 | O129: 330800
A130: 129 | B130: 综合〔2024〕26号 | C130: 330800320933 | D130: 投影仪 | E130: 投影仪 | F130: 2221.37 | G130: 66.64 | H130: 2154.73 | I130: 1 | J130: 台 | L130: SONY VPL-EX231 | N130: 衢州市公共库位 | O130: 330800
A131: 130 | B131: 综合〔2024〕26号 | C131: 330800321625 | D131: 台式电脑 | E131: 办公设备电脑 | F131: 4238.46 | G131: 127.15 | H131: 4111.31 | I131: 1 | J131: 台 | L131: DELL | N131: 衢州市公共库位 | O131: 330800
A132: 131 | B132: 综合〔2024〕26号 | C132: 330800321626 | D132: 台式电脑 | E132: 办公设备电脑 | F132: 4238.46 | G132: 127.15 | H132: 4111.31 | I132: 1 | J132: 台 | L132: DELL | N132: 衢州市公共库位 | O132: 330800
A133: 132 | B133: 综合〔2024〕26号 | C133: 330800321627 | D133: 台式电脑 | E133: 办公设备电脑 | F133: 4238.46 | G133: 127.15 | H133: 4111.31 | I133: 1 | J133: 台 | L133: DELL | N133: 衢州市公共库位 | O133: 330800
A134: 133 | B134: 综合〔2024〕26号 | C134: 330800321628 | D134: 台式电脑 | E134: 办公设备电脑 | F134: 4238.46 | G134: 127.15 | H134: 4111.31 | I134: 1 | J134: 台 | L134: DELL | N134: 衢州市公共库位 | O134: 330800
A135: 134 | B135: 综合〔2024〕26号 | C135: 330800321629 | D135: 台式电脑 | E135: 办公设备电脑 | F135: 4238.46 | G135: 127.15 | H135: 4111.31 | I135: 1 | J135: 台 | L135: DELL | N135: 衢州市公共库位 | O135: 330800
A136: 135 | B136: 综合〔2024〕26号 | C136: 330800002923 | D136: 台式电脑 | E136: 办公设备电脑 | F136: 4443.59 | G136: 133.31 | H136: 4310.28 | I136: 1 | J136: 台 | L136: DELL VOSTRO 3900-R5938C | N136: 衢州市公共库位 | O136: 330800
A137: 136 | B137: 综合〔2024〕26号 | C137: 330800002924 | D137: 台式电脑 | E137: 办公设备电脑 | F137: 4443.59 | G137: 133.31 | H137: 4310.28 | I137: 1 | J137: 台 | L137: DELL VOSTRO 3900-R5938C | N137: 衢州市公共库位 | O137: 330800
A138: 137 | B138: 综合〔2024〕26号 | C138: 330800321633 | D138: 台式电脑 | E138: 办公设备电脑 | F138: 4238.46 | G138: 127.15 | H138: 4111.31 | I138: 1 | J138: 台 | L138: 成就3667-R1838 R2848 | N138: 衢州市公共库位 | O138: 330800
A139: 138 | B139: 综合〔2024〕26号 | C139: 330800321634 | D139: 台式电脑 | E139: 办公设备电脑 | F139: 4238.46 | G139: 127.15 | H139: 4111.31 | I139: 1 | J139: 台 | L139: 成就3667-R1838 R2848 | N139: 衢州市公共库位 | O139: 330800

Sheet 湖州
A1: 序号 | B1: 报废批复文号 | C1: 资产编号 | D1: 资产名称 | E1: 资产类别名称 | F1: 资产原值 （元，不含税 | G1: 资产净值 （元，不含税 | H1: 累计折旧 | I1: 资产数量 | J1: 计量单位 （个/吨/米等 | K1: 规格 | L1: 规格型号 | M1: 生产厂家 | N1: 站点名称 | O1: 站点编码 | P1: 启用日期 | Q1: 备注 | R1: 实物位置 | S1: 批号 | T1: 是否处置 | U1: 处置方式
A2: 1 | B2: 总经理办公会纪要〔2024〕第 39 期 | C2: 330500002244 | D2: 普通空调柜式 | F2: 6416.47 | G2: 192.49 | H2: 6223.98 | I2: 1.00 | J2: 台 | K2: 3P | L2: 3P 三相柜式（单冷） | N2: 南浔练市湾里村 | O2: 33050300000001 | P2: 2015/5/5 | Q2: 无铜管 | R2: 中通仓库 | S2: 无*3P*备注：无铜管*南浔练市湾里村*33050300000001**330500002244**废旧
A3: 2 | B3: 总经理办公会纪要〔2024〕第 39 期 | C3: 330500311471 | D3: 普通空调壁挂 | F3: 3606.97 | G3: 108.21 | H3: 3498.76 | I3: 1.00 | J3: 台 | K3: 2P | L3: 2P单冷 | N3: 南浔江蒋漾西 | O3: 330503500000000086 | P3: 2017/5/31 | Q3: 无铜管 | R3: 中通仓库 | S3: 无*2P*备注：无铜管*南浔江蒋漾西*330503500000000086**330500311471**废旧
A4: 3 | B4: 总经理办公会纪要〔2024〕第 39 期 | C4: 330500316178 | D4: 普通空调柜式 | F4: 6925.77 | G4: 207.77 | H4: 6718.00 | I4: 1.00 | J4: 台 | K4: 3P | L4: 3P单冷三相整机 | N4: 湖州南浔双林虹桥苑基站 | O4: 330503908000000178 | P4: 2017/12/12 | Q4: 无铜管 | R4: 中通仓库 | S4: 无*3P*备注：无铜管*湖州南浔双林虹桥苑基站*330503908000000178**330500316178**废旧
A5: 4 | B5: 总经理办公会纪要〔2024〕第 39 期 | C5: 330500112790 | D5: 普通空调柜式 | F5: 2106.92 | G5: 63.21 | H5: 2043.71 | I5: 1.00 | J5: 个 | K5: 3P | L5: 基站专用柜式分体7KW单冷三相 | N5: 湖州南浔荃步村基站 | O5: 330503908000000415 | P5: 2015/10/31 | Q5: 无铜管 | R5: 中通仓库 | S5: 无*3P*备注：无铜管*湖州南浔荃步村基站*330503908000000415**330500112790**废旧
A6: 5 | B6: 总经理办公会纪要〔2024〕第 39 期 | C6: 330500123277 | D6: 普通空调柜式 | F6: 1545.75 | G6: 46.37 | H6: 1499.38 | I6: 1.00 | J6: 个 | K6: 3P | L6: 3匹柜机 | N6: 湖州南浔练市东盛绸厂基站 | O6: 330503908000000119 | P6: 2015/10/31 | Q6: 无铜管 | R6: 中通仓库 | S6: 无*3P*备注：无铜管*湖州南浔练市东盛绸厂基站*330503908000000119**330500123277**废旧
A7: 6 | B7: 湖州铁塔党委会纪要〔2024〕第 19 期 | C7: 330500119435 | D7: 组合式开关电源 | F7: 5790.20 | G7: 173.71 | H7: 5616.49 | I7: 1.00 | J7: 个 | L7: 组合式48V-600A(50A模块)-200 | N7: 双林收费站 | O7: 330503908000000548 | P7: 2015/10/31 | R7: 中通仓库 | S7: 无*组合式48V-600A(50A模块)-200**双林收费站*330522908000000170**330500119435**废旧
A8: 7 | B8: 湖州铁塔党委会纪要〔2024〕第 19 期 | C8: 330500112108 | D8: 普通空调柜式 | F8: 4050.00 | G8: 121.50 | H8: 3928.50 | I8: 1.00 | J8: 个 | K8: 3P | L8: 基站空调柜式-3P-单冷-三相交流-整机 | N8: 湖州南浔柏树村基站 | O8: 330503908000000238 | P8: 2015/10/31 | Q8: 无铜管 | R8: 中通仓库 | S8: 无*基站空调柜式-3P-单冷-三相交流-整机*备注：无铜管*湖州南浔柏树村基站*330521908000000682**330500112108**废旧
A9: 8 | B9: 总经理办公会纪要〔2024〕第 24 期 | C9: 330500122121 | D9: 交流配电箱 | F9: 385.58 | G9: 11.57 | H9: 374.01 | I9: 1.00 | J9: 面 | L9: 220V-63A | N9: 吴兴东林余山 | O9: 330502908000000339 | P9: 20151031 | R9: 中通仓库 | S9: 无*220V-63A**吴兴东林余山*330503500000000007**330500122121**废旧
A10: 9 | B10: 湖州铁塔党委会纪要〔2024〕第 19 期 | C10: 330500343419 | D10: 动力及环境监控单元 | F10: 4175.49 | G10: 1588.15 | H10: 2587.34 | I10: 1.00 | J10: 个 | L10: 主设备室内型成套设备双柜配置模型 | N10: 商合杭长兴金家庄 | O10: 330522500000001705 | P10: 2020/8/27 | R10: 中通仓库 | S10: 无*动力及环境监控单元**商合杭长兴金家庄*33050301000012**330500343419**废旧
A11: 10 | B11: 湖州铁塔党委会纪要〔2024〕第 19 期 | C11: 330500002983 | D11: 动力及环境监控单元 | F11: 5182.69 | G11: 155.48 | H11: 5027.21 | I11: 1.00 | J11: 个 | L11: 主设备室内型成套设备双柜配置模型 | N11: 长兴范家桥 | O11: 33052200000041 | P11: 2015/4/30 | R11: 中通仓库 | S11: 无*主设备室内型成套设备基本配置模型**长兴范家桥*330521908000000746**330500002983**废旧
A12: 11 | B12: 总经理办公会纪要〔2024〕第 24 期 | C12: 330500328398 | D12: 动力及环境监控单元 | F12: 2592.76 | G12: 496.96 | H12: 2095.80 | I12: 1.00 | J12: 个 | L12: 主设备室内型成套设备双柜配置模型 | N12: 安吉递铺宜茂 | O12: 330523908000000959 | P12: 20190306 | R12: 中通仓库 | S12: 无*主设备室内型成套设备基本配置模型**安吉递铺宜茂*330521500000000159**330500328398**废旧
A13: 12 | B13: 湖州铁塔党委会纪要〔2024〕第 19 期 | C13: 330500320006 | D13: 动力及环境监控单元 | F13: 3672.65 | G13: 159.65 | H13: 3513.00 | I13: 1.00 | J13: 个 | L13: 主设备室内型成套设备双柜配置模型 | N13: 长兴雉城云宇财富城 | O13: 330522908000000341 | P13: 2018/7/18 | R13: 中通仓库 | S13: 无*主设备室内型成套设备双柜配置模型**长兴雉城云宇财富城*330522908000000030**330500320006**废旧
A14: 13 | B14: 湖州铁塔党委会纪要〔2024〕第 19 期 | C14: 330500320004 | D14: 动力及环境监控单元 | F14: 3672.65 | G14: 159.65 | H14: 3513.00 | I14: 1.00 | J14: 个 | L14: 主设备室内型成套设备双柜配置模型 | N14: 长兴李家巷开发区 | O14: 330522010000000199 | P14: 2018/7/18 | R14: 中通仓库 | S14: 无*主设备室内型成套设备基本配置模型**长兴李家巷开发区*330502908000000315**330500320004**废旧
A15: 14 | B15: 湖州铁塔党委会纪要〔2024〕第 19 期 | C15: 330500311890 | D15: 动力及环境监控单元 | F15: 3731.76 | G15: 111.95 | H15: 3619.81 | I15: 1.00 | J15: 个 | L15: 主设备室内型成套设备双柜配置模型 | N15: 长兴紫金路西（浙水阳光南） | O15: 330522500000000216 | P15: 2017/6/16 | R15: 中通仓库 | S15: 无*主设备室内型成套设备基本配置模型**长兴紫金路西（浙水阳光南）*330502908000000331**330500311890**废旧
A16: 15 | B16: 湖州铁塔党委会纪要〔2024〕第 19 期 | C16: 330500004926 | D16: 嵌入式开关电源 | F16: 3996.78 | G16: 119.90 | H16: 3876.88 | I16: 1.00 | J16: 架 | L16: 嵌入式开关电源32A/3Px1（室外标准机柜用） | N16: 吴兴仁皇山科技局 | O16: 330502500000000038 | P16: 2015/11/13 | R16: 中通仓库 | S16: 无*嵌入式开关电源32A/3Px1（室外标准机柜用）**吴兴仁皇山科技局*330522908000000914**330500004926**废旧
A17: 16 | B17: 总经理办公会纪要〔2024〕第 24 期 | C17: 330500315702 | D17: 嵌入式开关电源 | F17: 4658.59 | G17: 139.76 | H17: 4518.83 | I17: 1.00 | J17: 架 | L17: 48V/300A高效系统(50A高效模块，共用电源系统，三相交流输入)100A | N17: 安吉天荒坪颜家 | O17: 330523908000000633 | P17: 20171102 | R17: 中通仓库 | S17: 无*48V/300A高效系统(50A高效模块，共用电源系统，三相交流输入)100A**安吉天荒坪颜家*330521908000000663**330500315702**废旧
A18: 17 | B18: 总经理办公会纪要〔2024〕第 24 期 | C18: 330500334909 | D18: 动力及环境监控单元 | F18: 2585.14 | G18: 704.40 | H18: 1880.74 | I18: 1.00 | J18: 个 | L18: 主设备室内型成套设备双柜配置模型 | N18: 湖州南浔灯塔村基站 | O18: 330503908000000366 | P18: 20190905 | R18: 中通仓库 | S18: 无*主设备室内型成套设备基本配置模型**湖州南浔灯塔村基站*330502908000000654**330500334909**废旧
A19: 18 | B19: 总经理办公会纪要〔2024〕第 24 期 | C19: 330500328552 | D19: 动力及环境监控单元 | F19: 2592.76 | G19: 496.96 | H19: 2095.80 | I19: 1.00 | J19: 个 | L19: 主设备室内型成套设备双柜配置模型 | N19: 湖州南浔灯塔村基站 | O19: 330503908000000366 | P19: 20190310 | R19: 中通仓库 | S19: 无*主设备室内型成套设备基本配置模型**湖州南浔灯塔村基站*330522908000000091**330500328552**废旧
A20: 19 | B20: 总经理办公会纪要〔2024〕第 24 期 | C20: 330500330658 | D20: 动力及环境监控单元 | F20: 2572.46 | G20: 527.68 | H20: 2044.78 | I20: 1.00 | J20: 个 | L20: 主设备室内型成套设备双柜配置模型 | N20: 湖州南浔千金南窑桥基站 | O20: 330503908000000265 | P20: 20190403 | R20: 中通仓库 | S20: 无*主设备室内型成套设备基本配置模型**湖州南浔千金南窑桥基站*330502908000000473**330500330658**废旧
A21: 20 | B21: 总经理办公会纪要〔2024〕第 24 期 | C21: 330500329605 | D21: 动力及环境监控单元 | F21: 2592.76 | G21: 496.96 | H21: 2095.80 | I21: 1.00 | J21: 个 | L21: 主设备室内型成套设备双柜配置模型 | N21: 湖州南浔英雄村基站 | O21: 330503908000000269 | P21: 20190327 | R21: 中通仓库 | S21: 无*主设备室内型成套设备基本配置模型**湖州南浔英雄村基站*330521500000000142**330500329605**废旧
A22: 21 | B22: 湖州铁塔党委会纪要〔2024〕第 19 期 | C22: 330500311002 | D22: 动力及环境监控单元 | F22: 3715.09 | G22: 111.45 | H22: 3603.64 | I22: 1.00 | J22: 个 | L22: 主设备室内型成套设备双柜配置模型 | N22: 德清新市韶村加油站 | O22: 330521500000000142 | P22: 2017/5/27 | R22: 中通仓库 | S22: 无*动力及环境监控单元-基础配置**德清新市韶村加油站*330503908000000269**330500311002**废旧
A23: 22 | B23: 总经理办公会纪要〔2024〕第 39 期 | C23: 330500313829 | D23: 动力及环境监控单元 | F23: 3604.32 | G23: 108.13 | H23: 3496.19 | I23: 1.00 | J23: 个 | L23: 主设备室内型成套设备双柜配置模型 | N23: 屯圩村 | O23: 330503908000000573 | P23: 2017/8/19 | R23: 中通仓库 | S23: 无*主设备室内型成套设备双柜配置模型**屯圩村*330502908000000239**330500313829**废旧
A24: 23 | B24: 总经理办公会纪要〔2024〕第 39 期 | C24: 330500319867 | D24: 动力及环境监控单元 | F24: 4832.96 | G24: 144.99 | H24: 4687.97 | I24: 1.00 | J24: 个 | L24: 主设备室内型成套设备双柜配置模型 | N24: 南浔世纪名楼 | O24: 330503500000001441 | P24: 2018/6/21 | R24: 中通仓库 | S24: 无*主设备室内型成套设备双柜配置模型**南浔世纪名楼*330502908000000112**330500319867**废旧
A25: 24 | B25: 总经理办公会纪要〔2024〕第 24 期 | C25: 330500317779 | D25: 动力及环境监控单元 | F25: 3658.12 | G25: 109.74 | H25: 3548.38 | I25: 1.00 | J25: 个 | L25: 主设备室内型成套设备双柜配置模型 | N25: 长兴李家巷鲍家村 | O25: 330522908000000170 | P25: 20180109 | R25: 中通仓库 | S25: 无*主设备室内型成套设备基本配置模型**长兴李家巷鲍家村*330521908000000533**330500317779**废旧
A26: 25 | B26: 湖州铁塔党委会纪要〔2024〕第 19 期 | C26: 330500123067 | D26: 普通空调柜式 | F26: 3539.41 | G26: 106.18 | H26: 3433.23 | I26: 1.00 | J26: 个 | K26: 3P | L26: 3P 三相柜式（单冷） | N26: 湖州南浔万家兜基站 | O26: 330503908000000382 | P26: 2015/10/31 | Q26: 无铜管 | R26: 中通仓库 | S26: 无*3P三相柜式（单冷）*备注：无铜管*湖州南浔万家兜基站*330521908000000659**330500123067**废旧
A27: 26 | B27: 总经理办公会纪要〔2024〕第 39 期 | C27: 330500105223 | D27: 组合式开关电源 | F27: 9554.67 | G27: 286.64 | H27: 9268.03 | I27: 1.00 | J27: 个 | L27: ZXDU68 | N27: 私营城方上1 | O27: 330521908000000682 | P27: 2015/10/31 | R27: 中通仓库 | S27: 无*ZXDU68**私营城方上1*330521908000000678**330500105223**废旧
A28: 27 | B28: 湖州铁塔党委会纪要〔2024〕第 19 期 | C28: 330500306861 | D28: 普通空调柜式 | F28: 6843.87 | G28: 205.32 | H28: 6638.55 | I28: 1.00 | J28: 台 | K28: 3P | L28: 基站专用柜式分体7KW单冷三相空调 | N28: 南浔马腰泗州 | O28: 330503908000000659 | P28: 2016/12/26 | Q28: 无铜管 | R28: 中通仓库 | S28: 无*基站专用柜式分体7KW单冷三相空调*备注：无铜管*南浔马腰泗州*330521908000000149**330500306861**废旧
A29: 28 | B29: 湖州铁塔党委会纪要〔2024〕第 19 期 | C29: 330500314245 | D29: 普通空调柜式 | F29: 6914.55 | G29: 207.44 | H29: 6707.11 | I29: 1.00 | J29: 台 | K29: 3P | L29: 3P单冷三相整机 | N29: 南浔马腰泗州 | O29: 330503908000000659 | P29: 2017/9/6 | Q29: 无铜管 | R29: 中通仓库 | S29: 无*3P单冷三相整机*备注：无铜管*南浔马腰泗州*330521908000000620**330500314245**废旧
A30: 29 | B30: 湖州铁塔党委会纪要〔2024〕第 19 期 | C30: 330500303580 | D30: 普通空调柜式 | F30: 7045.05 | G30: 211.35 | H30: 6833.70 | I30: 1.00 | J30: 台 | K30: 3P | L30: KFR-75L-KFR-75W | N30: 南浔姚家桥商桥坝自然村 | O30: 330503500000000007 | P30: 2016/6/27 | Q30: 无铜管 | R30: 中通仓库 | S30: 无*KFR-75L-KFR-75W*备注：无铜管*南浔姚家桥商桥坝自然村*330521908000000362**330500303580**废旧
A31: 30 | B31: 湖州铁塔党委会纪要〔2024〕第 19 期 | C31: 330500309315 | D31: 普通空调柜式 | F31: 5795.35 | G31: 173.86 | H31: 5621.49 | I31: 1.00 | J31: 台 | K31: 3P | L31: KFR-75L-KFR-75W | N31: 向阳村村委 | O31: 33050301000012 | P31: 2015/5/26 | Q31: 有铜管 | R31: 中通仓库 | S31: 无*KFR-75L-KFR-75W*备注：有铜管*向阳村村委*330521908000000253**330500309315**废旧
A32: 31 | B32: 总经理办公会纪要〔2024〕第 24 期 | C32: 330500129819 | D32: 交流配电箱 | F32: 4706.21 | G32: 141.19 | H32: 4565.02 | I32: 1.00 | J32: 个 | L32: ZBX1--20 | N32: 德清新市镇西 | O32: 330521908000000746 | P32: 20151031 | R32: 中通仓库 | S32: 无*ZBX1--20**德清新市镇西*330521908000000678**330500129819**废旧
A33: 32 | B33: 总经理办公会纪要〔2024〕第 24 期 | C33: 330500317695 | D33: 交流配电箱 | F33: 2361.44 | G33: 70.84 | H33: 2290.60 | I33: 1.00 | J33: 个 | L33: 220V-63A | N33: 德清干山南堂新建 | O33: 330521500000000159 | P33: 20171031 | R33: 中通仓库 | S33: 无*220V-63A**德清干山南堂新建*330523908000000945**330500317695**废旧
A34: 33 | B34: 湖州铁塔党委会纪要〔2024〕第 19 期 | C34: 330500111815 | D34: 普通空调柜式 | F34: 821.50 | G34: 24.65 | H34: 796.85 | I34: 1.00 | J34: 台 | K34: 3P | L34: 三菱3PLF72W-L(S)A | N34: 初康 | O34: 330522908000000030 | P34: 2015/10/31 | Q34: 有铜管 | R34: 中通仓库 | S34: 无*三菱3PLF72W-L(S)A*备注：有铜管*初康*330523908000000343**330500111815**废旧
A35: 34 | B35: 湖州铁塔党委会纪要〔2024〕第 19 期 | C35: 330500128446 | D35: 交流配电箱 | F35: 2902.41 | G35: 87.07 | H35: 2815.34 | I35: 1.00 | J35: 个 | L35: DPJ-380-63B | N35: 吴兴道场道场村 | O35: 330502908000000315 | P35: 2015/10/31 | R35: 中通仓库 | S35: 无*DPJ-380-63B**吴兴道场道场村*330523908000000431**330500128446**废旧
A36: 35 | B36: 湖州铁塔党委会纪要〔2024〕第 19 期 | C36: 330500122118 | D36: 交流配电箱 | F36: 3128.96 | G36: 93.87 | H36: 3035.09 | I36: 1.00 | J36: 个 | L36: 220V-63A | N36: 吴兴东林保丰 | O36: 330502908000000331 | P36: 2015/10/31 | R36: 中通仓库 | S36: 无*220V-63A**吴兴东林保丰*无**330500122118**废旧
A37: 36 | B37: 湖州铁塔党委会纪要〔2024〕第 19 期 | C37: 330500111638 | D37: 普通空调柜式 | F37: 257.50 | G37: 7.73 | H37: 249.77 | I37: 1.00 | J37: 个 | K37: 3P | L37: 3匹空调 | N37: 长兴虹星桥谭家基站 | O37: 330522908000000914 | P37: 2015/10/31 | Q37: 有铜管 | R37: 中通仓库 | S37: 无*3匹空调*备注：有铜管*长兴虹星桥谭家基站*无**330500111638**废旧
A38: 37 | B38: 总经理办公会纪要〔2024〕第 39 期 | C38: 330500109463 | D38: 组合式开关电源 | F38: 468.60 | G38: 14.06 | H38: 454.54 | I38: 1.00 | J38: 个 | L38: MCS1800C-48v-30 | N38: 水利排涝站 | O38: 330521908000000663 | P38: 2015/10/31 | R38: 中通仓库 | S38: 无*MCS1800C-48v-30**水利排涝站*无**330500109463**废旧
A39: 38 | B39: 湖州铁塔党委会纪要〔2024〕第 19 期 | C39: 330500112617 | D39: 普通空调柜式 | F39: 15.00 | G39: 0.45 | H39: 14.55 | I39: 1.00 | J39: 个 | K39: 3P | L39: 3匹柜机 | N39: 湖州吴兴杨家埠天艺纺织基站 | O39: 330502908000000654 | P39: 2015/10/31 | Q39: 有铜管 | R39: 中通仓库 | S39: 无*3匹柜机*备注：有铜管*湖州吴兴杨家埠天艺纺织基站*无**330500112617**废旧
A40: 39 | B40: 湖州铁塔党委会纪要〔2024〕第 19 期 | C40: 330500111783 | D40: 普通空调柜式 | F40: 678.40 | G40: 20.35 | H40: 658.05 | I40: 1.00 | J40: 台 | K40: 3P | L40: 三菱3PLF72W-L(S)A | N40: 葡萄卡 | O40: 330522908000000091 | P40: 2015/10/31 | Q40: 有铜管 | R40: 中通仓库 | S40: 无*三菱3PLF72W-L(S)A*备注：有铜管*葡萄卡*无**330500111783**废旧
A41: 40 | B41: 湖州铁塔党委会纪要〔2024〕第 19 期 | C41: 330500105424 | D41: 组合式开关电源 | F41: 1563.00 | G41: 46.89 | H41: 1516.11 | I41: 1.00 | J41: 个 | L41: 48V-500A(模块50A)-150 | N41: 吴兴白雀太史湾 | O41: 330502908000000473 | P41: 2015/10/31 | R41: 中通仓库 | S41: 无*48V-500A(模块50A)-150**吴兴白雀太史湾*无**330500105424**废旧
A42: 41 | B42: 湖州铁塔党委会纪要〔2024〕第 19 期 | C42: 330500310998 | D42: 普通空调柜式 | F42: 6597.25 | G42: 197.92 | H42: 6399.33 | I42: 1.00 | J42: 台 | K42: 3P | L42: 基站专用柜式分体5KW单冷单相空调 | N42: 德清新市韶村加油站 | O42: 330521500000000142 | P42: 2017/5/27 | Q42: 有铜管 | R42: 中通仓库 | S42: 无*基站专用柜式分体5KW单冷单相空调*备注：有铜管*德清新市韶村加油站*无**330500310998**废旧
A43: 42 | B43: 总经理办公会纪要〔2024〕第 39 期 | C43: 330500316181 | D43: 普通空调柜式 | F43: 6925.77 | G43: 207.77 | H43: 6718.00 | I43: 1.00 | J43: 台 | K43: 3P | L43: 3P单冷三相整机 | N43: 湖州南浔英雄村基站 | O43: 330503908000000269 | P43: 2017/12/12 | Q43: 有铜管 | R43: 中通仓库 | S43: 无*3P单冷三相整机*备注：有铜管*湖州南浔英雄村基站*无**330500316181**废旧
A44: 43 | B44: 总经理办公会纪要〔2024〕第 39 期 | C44: 330500129741 | D44: 组合式开关电源 | F44: 1661.16 | G44: 49.83 | H44: 1611.33 | I44: 1.00 | J44: 个 | L44: ZXDU58 | N44: 吴兴信谊家具 | O44: 330502908000000239 | P44: 2015/10/31 | R44: 中通仓库 | S44: 无*ZXDU58**吴兴信谊家具*无**330500129741**废旧
A45: 44 | B45: 总经理办公会纪要〔2024〕第 39 期 | C45: 330500120058 | D45: 组合式开关电源 | F45: 6738.33 | G45: 202.15 | H45: 6536.18 | I45: 1.00 | J45: 个 | L45: ZXDU68-150A | N45: 奚家庄 | O45: 330502908000000112 | P45: 2015/10/31 | R45: 中通仓库 | S45: 无*ZXDU68-150A**奚家庄*无**330500120058**废旧
A46: 45 | B46: 总经理办公会纪要〔2024〕第 39 期 | C46: 330500110771 | D46: 组合式开关电源 | F46: 994.75 | G46: 29.84 | H46: 964.91 | I46: 1.00 | J46: 个 | L46: 48V-500A(模块50A)-150 | N46: 德清雷甸解放 | O46: 330521908000000533 | P46: 2015/10/31 | R46: 中通仓库 | S46: 无*48V-500A(模块50A)-150**德清雷甸解放*无**330500110771**废旧
A47: 46 | B47: 总经理办公会纪要〔2024〕第 39 期 | C47: 330500300879 | D47: 组合式开关电源 | F47: 13896.14 | G47: 416.88 | H47: 13479.26 | I47: 1.00 | J47: 个 | L47: 48V-400A(50A模块)-150 | N47: 德清秋北村委 | O47: 330521908000000659 | P47: 2015/10/31 | R47: 中通仓库 | S47: 无*48V-400A(50A模块)-150**德清秋北村委*无**330500300879**废旧
A48: 47 | B48: 总经理办公会纪要〔2024〕第 39 期 | C48: 330500101852 | D48: 组合式开关电源 | F48: 382.20 | G48: 11.47 | H48: 370.73 | I48: 1.00 | J48: 个 | L48: 48V-500A(模块50A)-150 | N48: 德清王母山方家墩 | O48: 330521908000000678 | P48: 2015/10/31 | R48: 中通仓库 | S48: 无*48V-500A(模块50A)-150**德清王母山方家墩*无**330500101852**废旧
A49: 48 | B49: 总经理办公会纪要〔2024〕第 39 期 | C49: 330500124023 | D49: 普通空调柜式 | F49: 4704.12 | G49: 141.12 | H49: 4563.00 | I49: 1.00 | J49: 个 | K49: 3P | L49: 基站专用柜式分体7KW单冷三相空调 | N49: 湖州市德清武康三桥新村基站 | O49: 330521908000000149 | P49: 2015/10/31 | Q49: 有铜管 | R49: 中通仓库 | S49: 无*基站专用柜式分体7KW单冷三相空调*备注：有铜管*湖州市德清武康三桥新村基站*无**330500124023**废旧
A50: 49 | B50: 总经理办公会纪要〔2024〕第 39 期 | C50: 330500314067 | D50: 普通空调柜式 | F50: 6884.96 | G50: 206.55 | H50: 6678.41 | I50: 1.00 | J50: 台 | K50: 3P | L50: 3P单冷三相整机 | N50: 中利达水泥厂 | O50: 330521908000000620 | P50: 2017/8/25 | Q50: 有铜管 | R50: 中通仓库 | S50: 无*3P单冷三相整机*备注：有铜管*中利达水泥厂*无**330500314067**废旧
A51: 50 | B51: 总经理办公会纪要〔2024〕第 39 期 | C51: 330500124308 | D51: 普通空调壁挂 | F51: 693.00 | G51: 20.79 | H51: 672.21 | I51: 1.00 | J51: 个 | K51: 2P | L51: 2P单冷 | N51: 安吉递铺缸窑岭基站 | O51: 330523908000000343 | P51: 2015/10/31 | Q51: 无铜管 | R51: 中通仓库 | S51: 无*2P*备注：无铜管*安吉递铺缸窑岭基站*无**330500124308**废旧
A52: 51 | B52: 总经理办公会纪要〔2024〕第 39 期 | C52: 330500342458 | D52: 电力电缆 | F52: 36001.14 | G52: 15600.46 | H52: 20400.68 | I52: 14.00 | J52: 米 | L52: 4x35方铝线 | N52: 德清乾元齐星河东基站 | O52: 330521908000000454 | P52: 2018/12/19 | R52: 中通仓库 | S52: 无*4x35方铝线*14米*德清乾元齐星河东基站*330521908000000454**330500362096**废旧
A53: 52 | B53: 总经理办公会纪要〔2024〕第 39 期 | C53: 330500363764 | D53: 电力电缆 | F53: 9877.61 | G53: 7814.31 | H53: 2063.30 | I53: 23 | J53: 米 | L53: 4x35方铝线 | N53: 德清三合下扬 | O53: 330521908000000463 | P53: 2022/7/27 | R53: 中通仓库 | S53: 无*4x35方铝线*23米*德清三合下扬*330521908000000463**无资产卡片**废旧
A54: 53 | B54: 总经理办公会纪要〔2024〕第 39 期 | C54: 330500004659 | D54: 电力电缆 | F54: 23600.17 | G54: 2440.68 | H54: 21159.49 | I54: 36 | J54: 米 | L54: 4x35方铝线 | N54: 德清雷甸独圩郎 | O54: 33050201000205 | P54: 2015/9/28 | R54: 中通仓库 | S54: 无*4x35方铝线*36米*德清雷甸独圩郎*33050201000205**无资产卡片**废旧
A55: 54 | B55: 总经理办公会纪要〔2024〕第 39 期 | C55: 330500334938 | D55: 电力电缆 | F55: 10651.39 | G55: 5409.78 | H55: 5241.61 | I55: 27 | J55: 米 | L55: 4x35方铝线 | N55: 南方家园 | O55: 330521908000000571 | P55: 2019/9/9 | R55: 中通仓库 | S55: 无*4x35方铝线*27米*南方家园*330521908000000571**无资产卡片**废旧
A56: 55 | C56: 无资产卡片 | D56: 电力电缆 | I56: 34 | J56: 米 | L56: 4x35方铝线 | N56: 德清武康狮山基站 | O56: 330521908000000368 | R56: 中通仓库 | S56: 无*4x35方铝线*34米*德清武康狮山基站*330521908000000368**无资产卡片**废旧
A57: 56 | C57: 无资产卡片 | D57: 电力电缆 | I57: 66 | J57: 米 | L57: 4x35方铝线 | N57: 湖州德清钟管沈家墩基站 | O57: 330521908000000436 | R57: 中通仓库 | S57: 无*4x35方铝线*66米*湖州德清钟管沈家墩基站*330521908000000436**无资产卡片**废旧
A58: 57 | C58: 无资产卡片 | D58: 电力电缆 | I58: 36 | J58: 米 | L58: 4x35方铝线 | N58: 德清新安城头村基站 | O58: 330521908000000256 | R58: 中通仓库 | S58: 无*4x35方铝线*36米*德清新安城头村基站*330521908000000256**无资产卡片**废旧
A59: 58 | C59: 无资产卡片 | D59: 电力电缆 | I59: 24 | J59: 米 | L59: 4x35方铝线 | N59: 德清三合金边山基站 | O59: 330521908000000503 | R59: 中通仓库 | S59: 无*4x35方铝线*24米*德清三合金边山基站*330521908000000503**无资产卡片**废旧
A60: 59 | C60: 无资产卡片 | D60: 电力电缆 | I60: 110 | J60: 米 | L60: 4x35方铝线 | N60: 湖州市德清县乾元镇斗南高铁直放站 | O60: 330521908000000293 | R60: 中通仓库 | S60: 无*4x35方铝线*110米*湖州市德清县乾元镇斗南高铁直放站*330521908000000293**无资产卡片**废旧
A61: 60 | C61: 无资产卡片 | D61: 电力电缆 | I61: 10 | J61: 米 | L61: 4x35方铝线 | N61: 德清钟管升华基站 | O61: 330521908000000419 | R61: 中通仓库 | S61: 无*4x35方铝线*10米*德清钟管升华基站*330521908000000419**无资产卡片**废旧
A62: 61 | C62: 无资产卡片 | D62: 机柜空调 | I62: 1.00 | J62: 台 | K62: 1.5P | L62: 机柜空调 | N62: 安吉天荒坪北路蛮石桥 | O62: 330503908000000659 | Q62: 无铜管 | R62: 中通仓库 | S62: 无*1.5P*备注：无铜管*安吉天荒坪北路蛮石桥*330503908000000659**无资产卡片**废旧
A63: 62 | C63: 无资产卡片 | D63: 机柜空调 | I63: 1.00 | J63: 台 | K63: 1.5P | L63: 机柜空调 | N63: 安吉高禹下黄塘 | O63: 330503908000000659 | Q63: 无铜管 | R63: 中通仓库 | S63: 无*1.5P*备注：无铜管*安吉高禹下黄塘*330503908000000659**无资产卡片**废旧
A64: 63 | B64: 湖州铁塔党委会纪要〔2024〕第 23 期 | C64: 330500334632 | D64: 普通空调柜式 | F64: 6932.77 | G64: 1422.17 | H64: 5510.60 | I64: 1.00 | J64: 台 | K64: 3p | L64: 3P单冷三相整机 | N64: 德清雷甸污水处理厂 | O64: 330521908000000680 | P64: 2019/9/2 | Q64: 无铜管 | R64: 中通仓库 | S64: 无*3P*备注：无铜管*德清雷甸污水处理厂*330521908000000680**330500334632**废旧 | T64: 未处置
A65: 64 | B65: 湖州铁塔党委会纪要〔2024〕第 23 期 | C65: 330500304255 | D65: 电力电缆 | F65: 65673.58 | G65: 12261.64 | H65: 53411.94 | I65: 82.00 | J65: 米 | L65: 4x35方铝线 | N65: 德清武康筏头黄回山底 | O65: 330521500000000096 | P65: 2016/8/17 | R65: 中通仓库 | S65: 无*4x35方铝线*82米*德清武康筏头黄回山底*330521500000000096**330500304255**废旧 | T65: 未处置
A66: 65 | B66: 湖州铁塔党委会纪要〔2024〕第 23 期 | C66: 330500112048 | D66: 普通空调柜式 | F66: 4117.73 | G66: 123.53 | H66: 3994.20 | I66: 1.00 | J66: 台 | K66: 3p | L66: LF75WGT | N66: 安吉白水湾 | O66: 330523908000000945 | P66: 2015/10/31 | Q66: 无铜管 | R66: 中通仓库 | S66: 无*3P*备注：无铜管*安吉白水湾*无**330500112048**废旧 | T66: 未处置
A67: 66 | B67: 湖州铁塔党委会纪要〔2024〕第 23 期 | C67: 330500313773 | D67: 普通空调柜式 | F67: 6884.96 | G67: 206.55 | H67: 6678.41 | I67: 1.00 | J67: 台 | K67: 3p | L67: 3P单冷三相整机 | N67: 安吉递铺剑山基站 | O67: 330523908000000431 | P67: 2017/8/19 | Q67: 无铜管 | R67: 中通仓库 | S67: 无*3P*备注：无铜管*安吉递铺剑山基站*无**330500313773**废旧 | T67: 未处置
A68: 67 | B68: 湖州铁塔党委会纪要〔2024〕第 23 期 | C68: 330500124120 | D68: 普通空调柜式 | F68: 496.00 | G68: 14.88 | H68: 481.12 | I68: 1.00 | J68: 台 | K68: 3p | L68: KFR-75L-KFR-75W | N68: 德清王母山方家墩 | O68: 330521908000000678 | P68: 2015/10/31 | Q68: 有铜管 | R68: 中通仓库 | S68: 无*KFR-75L-KFR-75W*备注：有铜管*德清王母山方家墩*无**330500124120**废旧 | T68: 未处置
A69: 68 | B69: 湖州铁塔党委会纪要〔2024〕第 23 期 | C69: 330500112385 | D69: 普通空调柜式 | F69: 1442.00 | G69: 43.26 | H69: 1398.74 | I69: 1.00 | J69: 个 | K69: 3p | L69: 基站专用柜式分体5KW单冷单相空调 | N69: 安吉递铺下扇安置房基站 | O69: 330523908000000232 | P69: 2015/10/31 | Q69: 无铜管 | R69: 中通仓库 | S69: 无*基站专用柜式分体5KW单冷单相空调*备注：无铜管*安吉递铺下扇安置房基站*330503908000000382**330500112385**废旧 | T69: 未处置
A70: 69 | B70: 湖州铁塔党委会纪要〔2024〕第 23 期 | C70: 330500111732 | D70: 普通空调柜式 | F70: 2042.56 | G70: 61.28 | H70: 1981.28 | I70: 1.00 | J70: 个 | K70: 3p | L70: 基站专用柜式分体7KW单冷三相空调 | N70: 德清雷甸塘北村基站 | O70: 330521908000000362 | P70: 2015/10/31 | Q70: 有铜管 | R70: 中通仓库 | S70: 无*基站专用柜式分体7KW单冷三相空调*备注：有铜管*德清雷甸塘北村基站*无**330500111732**废旧 | T70: 未处置
A71: 70 | B71: 湖州铁塔党委会纪要〔2024〕第 23 期 | C71: 330500111743 | D71: 普通空调柜式 | F71: 962.50 | G71: 28.88 | H71: 933.62 | I71: 1.00 | J71: 个 | K71: 3p | L71: 基站专用柜式分体7KW单冷三相空调 | N71: 德清乾元德升木业基站 | O71: 330521908000000253 | P71: 2015/10/31 | Q71: 有铜管 | R71: 中通仓库 | S71: 无*基站专用柜式分体7KW单冷三相空调*备注：有铜管*德清乾元德升木业基站*无**330500111743**废旧 | T71: 未处置
A72: 71 | B72: 总经理办公会纪要〔2024〕第 39 期 | C72: 330500342328 | D72: 电力电缆 | F72: 9240.51 | G72: 5467.35 | H72: 3773.16 | I72: 188.50 | J72: 米 | L72: 4x35方铝线 | N72: 安吉孝丰白水冲搬迁 | O72: 330523500000001596 | P72: 2020/7/10 | R72: 中通仓库 | S72: 无*4x35方铝线（188.5米）*188.5米*安吉孝丰白水冲搬迁*330523500000001596**330500342328**废旧 | T72: 未处置
A73: 72 | B73: 总经理办公会纪要〔2024〕第 39 期 | C73: 330500121047 | D73: 电力电缆 | F73: 4259.77 | G73: 532.42 | H73: 3727.35 | I73: 520.00 | J73: 米 | L73: 4x35方铝线 | N73: 安吉天荒坪白茶谷-2 | O73: 330523908000000712 | P73: 2015/10/31 | R73: 中通仓库 | S73: 无*4x35方铝线（520米）*520米*安吉天荒坪白茶谷-2*330523908000000712**330500121047**废旧 | T73: 未处置
A74: 73 | B74: 总经理办公会纪要〔2024〕第 39 期 | C74: 330500342447 | D74: 电力电缆 | F74: 3056.31 | G74: 1781.87 | H74: 1274.44 | I74: 655.00 | J74: 米 | L74: 4x35方铝线 | N74: 安吉递铺超强家具基站 | O74: 330523908000000590 | P74: 2020/6/30 | R74: 中通仓库 | S74: 无*4x35方铝线（655米）*655米*安吉递铺超强家具基站*330523908000000590**330500342447**废旧 | T74: 未处置
A75: 74 | B75: 总经理办公会纪要〔2024〕第 39 期 | C75: 330500320148 | D75: 嵌入式开关电源 | F75: 8606.14 | G75: 258.18 | H75: 8347.96 | I75: 1.00 | J75: 架 | L75: 48V/300A高效系统(50A高效模块，共用电源系统，三相交流输入)150A | N75: 吴兴埭溪龙池科技 | O75: 330502500000001732 | P75: 2018/6/16 | R75: 中通仓库 | S75: 无*嵌入式48V/300A高效系统-150A**吴兴埭溪龙池科技*330502500000001732**330500320148**废旧 | T75: 未处置
A76: 75 | B76: 总经理办公会纪要〔2024〕第 39 期 | C76: 330500388123 | D76: 电力电缆 | F76: 223.79 | G76: 221.63 | H76: 2.16 | I76: 1.00 | J76: 米 | L76: 4x35方铝线 | N76: 吴兴埭溪龙池科技 | O76: 330502500000001732 | P76: 2024/4/18 | R76: 中通仓库 | S76: 无*1×35mm2-红色(1m)**吴兴埭溪龙池科技*330502500000001732**330500388123**废旧 | T76: 未处置
A77: 76 | B77: 湖州铁塔党委会纪要〔2024〕第 23 期 | C77: 330500328220 | D77: 铜铁转换条 | F77: 153.34 | G77: 120.00 | H77: 33.34 | I77: 1.00 | J77: 个 | L77: 铜铁转换条 | N77: 吴兴中南大厦 | O77: 330502600000000578 | P77: 2019/1/19 | R77: 中通仓库 | S77: 无*铜铁转换条**吴兴中南大厦*330502600000000578**330500328220**废旧 | T77: 未处置
A78: 77 | B78: 总经理办公会纪要〔2024〕第 39 期 | C78: 330500355443 | D78: 电力电缆 | F78: 24272.89 | G78: 17176.69 | H78: 7096.20 | I78: 1.00 | J78: 米 | L78: 4x35方铝线 | N78: 吴兴埭溪龙池科技 | O78: 330502500000001732 | P78: 2021/9/23 | R78: 中通仓库 | S78: 无*1米铝线**吴兴埭溪龙池科技*330502500000001732**330500355443**废旧 | T78: 未处置
A79: 78 | B79: 湖州铁塔党委会纪要〔2024〕第 23 期 | C79: 330500328214 | D79: 电力电缆 | F79: 10061.95 | G79: 4360.15 | H79: 5701.80 | I79: 1.00 | J79: 米 | L79: 4x35方铝线 | N79: 吴兴中南大厦 | O79: 330502600000000578 | P79: 2019/1/19 | R79: 中通仓库 | S79: 无*1米铝线**吴兴中南大厦*330502600000000578**330500328214**废旧 | T79: 未处置
A80: 79 | B80: 总经理办公会纪要〔2024〕第 39 期 | C80: 330500110115 | D80: 组合式开关电源 | F80: 382.20 | G80: 11.47 | H80: 370.73 | I80: 1.00 | J80: 个 | L80: 48V-500A(模块50A)-150 | N80: 东双林村委 | O80: 330503908000000427 | P80: 2015/10/31 | R80: 中通仓库 | S80: 无*组合式48V-500A(模块50A)-150**东双林村委*330503908000000427**330500110115**废旧 | T80: 未处置
A81: 80 | B81: 总经理办公会纪要〔2024〕第 39 期 | C81: 330500314090 | D81: 普通空调柜式 | F81: 6884.96 | G81: 206.55 | H81: 6678.41 | I81: 1.00 | J81: 台 | K81: 3p | L81: 3P单冷三相整机 | N81: 安吉孝丰皈山基站 | O81: 330523908000000482 | P81: 2017/8/25 | Q81: 有铜管 | R81: 中通仓库 | S81: 无*3匹空调*3P*安吉孝丰皈山基站*330523908000000482**330500314090**废旧 | T81: 未处置
A82: 81 | B82: 总经理办公会纪要〔2024〕第 39 期 | C82: 330500112277 | D82: 普通空调柜式 | F82: 3948.00 | G82: 118.44 | H82: 3829.56 | I82: 1.00 | J82: 个 | K82: 3p | L82: 基站专用柜式分体12KW单冷三 | N82: 安吉章村中张基站 | O82: 330523908000000200 | P82: 2015/10/31 | Q82: 无铜管 | R82: 中通仓库 | S82: 无*中程节能*3P*安吉章村中张基站*330523908000000200**330500112277**废旧 | T82: 未处置
A83: 82 | B83: 总经理办公会纪要〔2024〕第 39 期 | C83: 330500112832 | D83: 普通空调柜式 | F83: 2964.00 | G83: 88.92 | H83: 2875.08 | I83: 1.00 | J83: 个 | K83: 3p | L83: 基站专用柜式分体12KW单冷三相空调 | N83: 德清新安上南港基站 | O83: 330521908000000495 | P83: 2015/10/31 | Q83: 有铜管 | R83: 中通仓库 | S83: 无*3P单冷三相整机*3P*德清新安上南港基站*330521908000000495**330500112832**废旧 | T83: 未处置
A84: 83 | B84: 总经理办公会纪要〔2024〕第 39 期 | C84: 330500003107 | D84: 普通空调柜式 | F84: 6082.08 | G84: 182.46 | H84: 5899.62 | I84: 1.00 | J84: 台 | K84: 3p | L84: 3P 三相柜式（单冷） | N84: 德清禹越徐家庄北 | O84: 33052100000114 | P84: 2015/5/30 | Q84: 有铜管 | R84: 中通仓库 | S84: 无*KFR-75L-KFR-75W*3P*德清禹越徐家庄北*33052100000114**330500003107**废旧 | T84: 未处置
A85: 84 | B85: 总经理办公会纪要〔2024〕第 39 期 | C85: 330500112325 | D85: 普通空调柜式 | F85: 3877.71 | G85: 116.33 | H85: 3761.38 | I85: 1.00 | J85: 个 | K85: 3p | L85: 基站专用柜式分体7KW单冷三相空调 | N85: 德清禹越周家庄基站 | O85: 330521908000000398 | P85: 2015/10/31 | Q85: 有铜管 | R85: 中通仓库 | S85: 无*基站专用柜式分体7KW单冷三相*3P*德清禹越周家庄基站*330521908000000398**330500112325**废旧 | T85: 未处置
A86: 85 | B86: 总经理办公会纪要〔2024〕第 39 期 | C86: 330500314244 | D86: 普通空调柜式 | F86: 6237.98 | G86: 187.14 | H86: 6050.84 | I86: 1.00 | J86: 台 | K86: 3p | L86: 3P单冷三相整机 | N86: 湖州吴兴道场乡方路茶厂基站 | O86: 330502908000001092 | P86: 2017/9/6 | Q86: 有铜管 | R86: 中通仓库 | S86: 无*基站专用柜式分体7KW单冷三相空调*3P*湖州吴兴道场乡方路茶厂基站*330502908000001092**330500314244**废旧 | T86: 未处置
A87: 86 | B87: 湖州铁塔党委会纪要〔2024〕第 23 期 | C87: 330500308920 | D87: 普通空调柜式 | F87: 6377.24 | G87: 191.32 | H87: 6185.92 | I87: 1.00 | J87: 台 | K87: 3p | L87: 3P单冷三相整机 | N87: 安吉天荒坪学明竹制品厂（天荒坪镇增补1） | O87: 330523500000000110 | P87: 2017/2/10 | Q87: 有铜管 | R87: 中通仓库 | S87: 无*基站专用柜式分体7KW单冷三相*3P*安吉天荒坪学明竹制品厂（天荒坪镇增补1）*330523500000000110**330500308920**废旧 | T87: 未处置
A88: 87 | B88: 湖州铁塔党委会纪要〔2024〕第 23 期 | C88: 330500112350 | D88: 普通空调柜式 | F88: 192.00 | G88: 5.76 | H88: 186.24 | I88: 1.00 | J88: 个 | K88: 3p | L88: 3匹柜机 | N88: 安吉孝丰新村基站 | O88: 330523908000000481 | P88: 2015/10/31 | Q88: 有铜管 | R88: 中通仓库 | S88: 无*基站专用柜式分体7KW单冷三相空调*3P*安吉孝丰新村基站*330523908000000481**330500112350**废旧 | T88: 未处置
A89: 88 | B89: 湖州铁塔党委会纪要〔2024〕第 23 期 | C89: 330500123404 | D89: 普通空调柜式 | F89: 255.00 | G89: 7.65 | H89: 247.35 | I89: 1.00 | J89: 台 | K89: 3p | L89: SPW-V254DH5 | N89: 安吉章村章里 | O89: 330523908000000743 | P89: 2015/10/31 | Q89: 有铜管 | R89: 中通仓库 | S89: 无*基站专用柜式分体7KW单冷三相空调*3P*安吉章村章里*330523908000000743**330500123404**废旧 | T89: 未处置
A90: 89 | B90: 湖州铁塔党委会纪要〔2024〕第 23 期 | C90: 330500129293 | D90: 普通空调柜式 | F90: 990.00 | G90: 29.70 | H90: 960.30 | I90: 1.00 | J90: 个 | K90: 3p | L90: 基站专用柜式分体7KW单冷三相空调 | N90: 德清筏头勤劳村基站 | O90: 330521908000000354 | P90: 2015/10/31 | Q90: 有铜管 | R90: 中通仓库 | S90: 无*基站专用柜式分体7KW单冷三相空调*3P*德清筏头勤劳村基站*330521908000000354**330500129293**废旧 | T90: 未处置
A91: 90 | B91: 湖州铁塔党委会纪要〔2024〕第 23 期 | C91: 330500312499 | D91: 普通空调柜式 | F91: 6747.22 | G91: 202.42 | H91: 6544.80 | I91: 1.00 | J91: 台 | K91: 3p | L91: 3P单冷三相整机 | N91: 德清武康五四青刁坞 | O91: 330521500000000140 | P91: 2017/6/28 | Q91: 无铜管 | R91: 中通仓库 | S91: 无*3P单冷三相整机*3P*德清武康五四青刁坞*330521500000000140**330500312499**废旧 | T91: 未处置
A92: 91 | B92: 湖州铁塔党委会纪要〔2024〕第 23 期 | C92: 330500311572 | D92: 普通空调柜式 | F92: 6635.74 | G92: 199.07 | H92: 6436.67 | I92: 1.00 | J92: 台 | K92: 3p | L92: 3P单冷三相整机 | N92: 德清洛舍南塍埭（高铁） | O92: 330521500000000138 | P92: 2017/5/27 | Q92: 无铜管 | R92: 中通仓库 | S92: 无*3P单冷三相整机*3P*德清洛舍南塍埭（高铁）*330521500000000138**330500311572**废旧 | T92: 未处置
A93: 92 | B93: 湖州铁塔党委会纪要〔2024〕第 23 期 | C93: 330500112173 | D93: 普通空调柜式 | F93: 1854.00 | G93: 55.62 | H93: 1798.38 | I93: 1.00 | J93: 个 | K93: 3p | L93: 基站专用柜式分体7KW单冷三相空调 | N93: 德清新安虎啸桥基站 | O93: 330521908000000439 | P93: 2015/10/31 | Q93: 有铜管 | R93: 中通仓库 | S93: 无*3P三相柜式（单冷）*3P*德清新安虎啸桥基站*330521908000000439**330500112173**废旧 | T93: 未处置
A94: 93 | B94: 湖州铁塔党委会纪要〔2024〕第 23 期 | C94: 330500111891 | D94: 普通空调柜式 | F94: 192.00 | G94: 5.76 | H94: 186.24 | I94: 1.00 | J94: 台 | K94: 3p | L94: KFR-75L-KFR-75W | N94: 德清三桥外贸公司 | O94: 330521908000000634 | P94: 2015/10/31 | Q94: 有铜管 | R94: 中通仓库 | S94: 无*3P空调*3P*德清三桥外贸公司*330521908000000634**330500111891**废旧 | T94: 未处置
A95: 94 | B95: 总经理办公会纪要〔2024〕第 39 期 | C95: 330500309780 | D95: 嵌入式开关电源 | F95: 5512.23 | G95: 165.37 | H95: 5346.86 | I95: 1.00 | J95: 个 | L95: 嵌入式高频开关电源-48V/300A高效系统 | N95: 湖州吴兴织里康泰路基站 | O95: 330502908000000713 | P95: 2015/9/28 | R95: 中通仓库 | S95: 无*嵌入式开关电源32A/3Px1（室外标准机柜用）**湖州吴兴织里康泰路基站*330502908000000713**330500309780**废旧 | T95: 未处置
A96: 95 | B96: 湖州铁塔党委会纪要〔2024〕第 23 期 | C96: 330500300733 | D96: 普通空调柜式 | F96: 5290.44 | G96: 158.71 | H96: 5131.73 | I96: 1.00 | J96: 台 | K96: 3p | L96: 3P单冷 | N96: 德清新安镇舍南村(申嘉湖杭新增3) | O96: 330521908000000815 | P96: 2015/10/31 | Q96: 无铜管 | R96: 中通仓库 | S96: 无*3P*3P*德清新安镇舍南村(申嘉湖杭新增3)*330521908000000815**330500300733**废旧 | T96: 未处置
A97: 96 | B97: 总经理办公会纪要〔2024〕第 39 期 | C97: 330500122987 | D97: 组合式开关电源 | F97: 1563.00 | G97: 46.89 | H97: 1516.11 | I97: 1.00 | J97: 个 | L97: 48V-500A(模块50A)-100 | N97: 德清卫星大门兜 | O97: 330521908000000675 | P97: 2015/10/31 | R97: 中通仓库 | S97: 无*48V-500A(模块50A)-100**德清卫星大门兜*330521908000000675**330500122987**废旧 | T97: 未处置
A98: 97 | B98: 总经理办公会纪要〔2024〕第 39 期 | C98: 330500101946 | D98: 组合式开关电源 | F98: 1734.17 | G98: 52.03 | H98: 1682.14 | I98: 1.00 | J98: 个 | L98: 48V-500A(模块50A)-100 | N98: 德清乌牛山 | O98: 330521908000000662 | P98: 2015/10/31 | R98: 中通仓库 | S98: 无*48V-500A(模块50A)-100**德清乌牛山*330521908000000662**330500101946**废旧 | T98: 未处置
A99: 98 | B99: 总经理办公会纪要〔2024〕第 39 期 | C99: 330500109198 | D99: 组合式开关电源 | F99: 1194.60 | G99: 35.84 | H99: 1158.76 | I99: 1.00 | J99: 个 | L99: 48V-500A(模块50A)-100 | N99: 德清武康新琪 | O99: 330521908000000606 | P99: 2015/10/31 | R99: 中通仓库 | S99: 无*48V-500A(模块50A)-100**德清武康新琪*330521908000000606**330500109198**废旧 | T99: 未处置
A100: 99 | B100: 总经理办公会纪要〔2024〕第 39 期 | C100: 330500108987 | D100: 组合式开关电源 | F100: 331.50 | G100: 9.95 | H100: 321.55 | I100: 1.00 | J100: 个 | L100: 48V-500A(模块50A)-150 | N100: 德清新安北公埭 | O100: 330521908000000696 | P100: 2015/10/31 | R100: 中通仓库 | S100: 无*48V-500A(模块50A)-150**德清新安北公埭*330521908000000696**330500108987**废旧 | T100: 未处置
A101: 100 | B101: 湖州铁塔党委会纪要〔2024〕第 23 期 | C101: 330500123774 | D101: 普通空调柜式 | F101: 257.50 | G101: 7.73 | H101: 249.77 | I101: 1.00 | J101: 个 | K101: 3p | L101: 3匹空调 | N101: 湖州南浔善琏含山村朱塘基站 | O101: 330503908000000227 | P101: 2015/10/31 | Q101: 无铜管 | R101: 中通仓库 | S101: 无*基站专用柜式分体12KW单冷三相空调*3P*湖州南浔善琏含山村朱塘基站*330503908000000227**330500123774**废旧 | T101: 未处置
A102: 101 | B102: 湖州铁塔党委会纪要〔2024〕第 23 期 | C102: 330500111993 | D102: 普通空调柜式 | F102: 5943.70 | G102: 178.31 | H102: 5765.39 | I102: 1.00 | J102: 个 | K102: 3p | L102: 基站专用柜式分体7KW单冷三相 | N102: 湖州南浔石淙东坝基站 | O102: 330503908000000191 | P102: 2015/10/31 | Q102: 无铜管 | R102: 中通仓库 | S102: 无*3P三相柜式（单冷）*3P*湖州南浔石淙东坝基站*330503908000000191**330500111993**废旧 | T102: 未处置
A103: 102 | B103: 湖州铁塔党委会纪要〔2024〕第 23 期 | C103: 330500123285 | D103: 普通空调柜式 | F103: 4008.12 | G103: 120.24 | H103: 3887.88 | I103: 1.00 | J103: 个 | K103: 3p | L103: 基站专用柜式分体7KW单冷三相空调 | N103: 湖州市德清县雷甸光辉村基站 | O103: 330521908000000246 | P103: 2015/10/31 | Q103: 无铜管 | R103: 中通仓库 | S103: 无*基站专用柜式分体7KW单冷三相空调*3P*湖州市德清县雷甸光辉村基站*330521908000000246**330500123285**废旧 | T103: 未处置
A104: 103 | B104: 总经理办公会纪要〔2024〕第 39 期 | C104: 330500102909 | D104: 组合式开关电源 | F104: 3286.59 | G104: 98.60 | H104: 3187.99 | I104: 1.00 | J104: 个 | L104: MCS3000D-48-50-400 | N104: 德清钟管罗丰 | O104: 330521908000000749 | P104: 2015/10/31 | R104: 中通仓库 | S104: 无*MCS3000D-48-50-400**德清钟管罗丰*330521908000000749**330500102909**废旧 | T104: 未处置
A105: 104 | B105: 湖州铁塔党委会纪要〔2024〕第 23 期 | C105: 330500123145 | D105: 普通空调柜式 | F105: 1051.60 | G105: 31.55 | H105: 1020.05 | I105: 1.00 | J105: 个 | K105: 3p | L105: 基站专用柜式分体7KW单冷三相空调 | N105: 德清武康白燕基站 | O105: 330521908000000295 | P105: 2015/10/31 | Q105: 有铜管 | R105: 中通仓库 | S105: 无*3P单冷*3P*德清武康白燕基站*330521908000000295**330500123145**废旧 | T105: 未处置
A106: 105 | B106: 湖州铁塔党委会纪要〔2024〕第 19 期 | C106: 330500301858 | D106: 电力电缆 | F106: 19660.29 | G106: 3261.50 | H106: 16398.79 | I106: 1.00 | J106: 米 | L106: 4x35方铝线 | N106: 长兴紫罗兰宾馆 | O106: 330522500000000086 | P106: 42442 | R106: 中通仓库 | S106: 无*外市电引入**长兴紫罗兰宾馆*330522500000000086**330500301858**废旧 | T106: 未处置
A107: 106 | B107: 湖州铁塔党委会纪要〔2024〕第 19 期 | C107: 330500313852 | D107: 动环 | F107: 858.04 | G107: 25.74 | H107: 832.30 | I107: 1.00 | J107: 个 | L107: 主设备室外型拉远站用FSU设备常温220V/240V型 | N107: 长兴紫罗兰宾馆 | O107: 330522500000000086 | P107: 42966 | R107: 中通仓库 | S107: 无*动力及环境监控单元**长兴紫罗兰宾馆*330522500000000086**330500313852**废旧 | T107: 未处置
A108: 107 | B108: 湖州铁塔党委会纪要〔2024〕第 23 期 | C108: 330500341186 | D108: 动环 | F108: 3393.19 | G108: 1016.50 | H108: 2376.69 | I108: 1.00 | J108: 套 | L108: 主设备室内型成套设备基本配置模型 | N108: 长兴水口木家庄 | O108: 330522500000000210 | P108: 2020/4/16 | R108: 中通仓库 | S108: 无*主设备室内型成套设备基本配置模型**长兴水口木家庄*330522500000000210**330500341186**废旧 | T108: 未处置
A109: 108 | B109: 湖州铁塔党委会纪要〔2024〕第 23 期 | C109: 330500338306 | D109: 配套机架/机柜 | F109: 1099.52 | G109: 240.12 | H109: 859.40 | I109: 1.00 | J109: 个 | L109: 配套综合柜整机2000*600*600mm配套综合柜(单开后门) | N109: 长兴夹浦丁家渚村东 | O109: 330522500000001697 | P109: 2019/10/24 | R109: 中通仓库 | S109: 无*配套综合柜整机2000x600x600mm配套综合柜(单开后门)**长兴夹浦丁家渚村东*330522500000001697**330500338306**废旧 | T109: 未处置
A110: 109 | B110: 湖州铁塔党委会纪要〔2024〕第 23 期 | C110: 330500338310 | D110: 动环 | F110: 3374.90 | G110: 737.07 | H110: 2637.83 | I110: 1.00 | J110: 套 | L110: 主设备室内型成套设备基本配置模型 | N110: 长兴夹浦丁家渚村东 | O110: 330522500000001697 | P110: 2019/10/24 | R110: 中通仓库 | S110: 无*主设备室内型成套设备基本配置模型**长兴夹浦丁家渚村东*330522500000001697**330500338310**废旧 | T110: 未处置
A111: 110 | B111: 湖州铁塔党委会纪要〔2024〕第 23 期 | C111: 330500333473 | D111: 动环 | F111: 4289.81 | G111: 765.43 | H111: 3524.38 | I111: 1.00 | J111: 套 | L111: 主设备室内型成套设备基本配置模型 | N111: 长兴雉城大自然 | O111: 330522500000001686 | P111: 2019/7/18 | R111: 中通仓库 | S111: 无*主设备室内型成套设备基本配置模型**长兴雉城大自然*330522500000001686**330500333473**废旧 | T111: 未处置
A112: 111 | B112: 湖州铁塔党委会纪要〔2024〕第 23 期 | C112: 330500308724 | D112: 嵌入式开关电源 | F112: 5606.37 | G112: 168.19 | H112: 5438.18 | I112: 1.00 | J112: 架 | L112: 48V/300A高效系统(50A高效模块，共用电源系统，三相交流输入)100A | N112: 湖州吴兴埭溪东红村基站 | O112: 330502908000001221 | P112: 2016/12/31 | R112: 中通仓库 | S112: 无*嵌入式开关电源32A/3Px1（室外标准机柜用）**湖州吴兴埭溪东红村基站*330502908000001221**330500308724**废旧 | T112: 未处置
A113: 112 | B113: 湖州铁塔党委会纪要〔2024〕第 23 期 | C113: 330500317868 | D113: 动环 | F113: 3574.91 | G113: 107.25 | H113: 3467.66 | I113: 1.00 | J113: 套 | L113: 主设备室内型成套设备基本配置模型 | N113: 安吉递铺梅坑桥 | O113: 330523908000000720 | P113: 2018/1/12 | R113: 中通仓库 | S113: 无*动力及环境监控单元-基础配置**安吉递铺梅坑桥*330523908000000720**330500317868**废旧 | T113: 未处置
A114: 113 | B114: 湖州铁塔党委会纪要〔2024〕第 23 期 | C114: 330500351889_1_2 | D114: 嵌入式开关电源 | F114: 2140.63 | G114: 992.69 | H114: 1147.94 | I114: 1.00 | J114: 套 | L114: 一体化机柜一体化设备柜650*650*18001500W交流空调室外柜（内置智能电源）-电源设备柜（PU，1800，内置智能电源） | N114: 吴兴高速指挥北NR | O114: 330502500010002279 | P114: 2021/4/25 | R114: 中通仓库 | S114: 无*模块化开关电源**吴兴高速指挥北NR*330502500010002279**330500351889_1_2**废旧 | T114: 未处置
A115: 114 | B115: 湖州铁塔党委会纪要〔2024〕第 23 期 | C115: 330500309901 | D115: 壁挂式开关电源 | F115: 93372.96 | G115: 2801.19 | H115: 90571.77 | I115: 1.00 | J115: 套 | L115: 壁挂式开关电源63A/2P*1 | N115: 吴兴织里产业园 | O115: 330502010000000304 | P115: 2016/11/11 | R115: 中通仓库 | S115: 无*壁挂式开关电源63A/2Px1**吴兴织里产业园*330502010000000304**330500309901**废旧 | T115: 未处置
A116: 115 | B116: 湖州铁塔党委会纪要〔2024〕第 23 期 | C116: 330500302170 | D116: 嵌入式开关电源 | F116: 7466.06 | G116: 223.98 | H116: 7242.08 | I116: 1.00 | J116: 套 | L116: 嵌入式高频开关电源-48V/300A高效系统(50A高效模块，共用电源系统，三相交流输入)-150A | N116: 南浔区南浔中学 | O116: 330503500000000052 | P116: 2016/3/30 | R116: 中通仓库 | S116: 无*嵌入式开关电源32A/3Px1（室外标准机柜用）**南浔区南浔中学*330503500000000052**330500302170**废旧 | T116: 未处置
A117: 116 | B117: 湖州铁塔党委会纪要〔2024〕第 23 期 | C117: 330500303140 | D117: 嵌入式开关电源 | F117: 8488.65 | G117: 254.66 | H117: 8233.99 | I117: 1.00 | J117: 架 | L117: 嵌入式电源 | N117: 吴兴白雀林厂 | O117: 330502500000000082 | P117: 2016/5/3 | R117: 中通仓库 | S117: 无*嵌入式电源（高压远供）*备注：高压远供*吴兴白雀林厂*330502500000000082**330500303140**废旧 | T117: 未处置
A118: 117 | B118: 湖州铁塔党委会纪要〔2024〕第 19 期 | C118: 330500116016 | D118: 交流配电箱 | F118: 7913.94 | G118: 237.42 | H118: 7676.52 | I118: 1.00 | J118: 面 | L118: ZBX5-F | N118: 市区天外印刷 | O118: 330502908000000454 | P118: 2015/10/31 | R118: 中通仓库 | S118: 无*交流配电箱**市区天外印刷*330502908000000454**330500116016**废旧 | T118: 未处置
A119: 118 | B119: 总经理办公会纪要〔2024〕第 39 期 | C119: 无资产卡片 | D119: 电力电缆 | I119: 25.00 | J119: 米 | L119: 4x35方铝线 | N119: 安吉良朋基站 | O119: 330523908000000176 | R119: 中通仓库 | S119: 无*4x35方铝线（25米）*25米*安吉良朋基站*330523908000000176**无资产卡片**废旧 | T119: 未处置
A120: 119 | C120: 无资产卡片 | D120: 电力电缆 | I120: 409.00 | J120: 米 | L120: 4x35方铝线 | N120: 安吉孝丰天赋基站 | O120: 330523908000000310 | R120: 中通仓库 | S120: 无*4x35方铝线（409米）*409米*安吉孝丰天赋基站*330523908000000310**无资产卡片**废旧 | T120: 未处置
A121: 120 | C121: 无资产卡片 | D121: 机柜空调 | I121: 1.00 | J121: 个 | L121: 1.5P | N121: 湖州铁塔仓库 | R121: 中通仓库 | S121: 无*机柜空调*1.5P*湖州铁塔仓库*无**无资产卡片**废旧 | T121: 未处置
A122: 121 | C122: 无资产卡片 | D122: 机柜空调 | I122: 1.00 | J122: 个 | L122: 0.12P | N122: 湖州铁塔仓库 | R122: 中通仓库 | S122: 无*机柜空调*0.12P*湖州铁塔仓库*无**无资产卡片**废旧 | T122: 未处置
A123: 122 | C123: 无资产卡片 | D123: 防雷箱 | I123: 1.00 | J123: 个 | L123: 防雷箱 | N123: 湖州铁塔仓库 | R123: 中通仓库 | S123: 无*防雷箱**湖州铁塔仓库*无**无资产卡片**废旧 | T123: 未处置
A124: 123 | C124: 无资产卡片 | D124: 防盗门 | I124: 12.00 | J124: 个 | L124: 防盗门 | N124: 湖州铁塔仓库 | R124: 中通仓库 | S124: 无*防盗门**湖州铁塔仓库*无**无资产卡片**废旧 | T124: 未处置
